{"text_format":"1","workbook":"xlsx","n_sheets":17,"sheets":["PORTADA","MENU","CFDIE","RPAGOSE","METADATA","CFDIR","RPAGOSR","METADATAR","NOMINA","PP ISR","PP ISR RESICO","DISMINUCION","INGRESOS","DEDUCCIONES","CATALOGO","c_Estado","DATOS"],"not_rendered":{"charts":0,"images":34,"macros":1,"external_links":0,"defined_names":42,"comments":1,"pivot_tables":0},"unopened":[],"bounds":{"document_bytes":16777216,"sheet_cells":100000,"rows_first":2000,"rows_last":500,"rows_between":2000,"halvings":0,"cell_chars":16384,"cell_head_chars":4096},"cells_cut":0,"cells_raw":0,"read":"whole","date_system":"1900"}

{"sheet":"PORTADA","index":0,"n_rows":331,"n_cols":17,"rows_kept":331,"cut":false,"hidden":false,"merged":[]}
[]
[]
[]
[]
[]
[]
[]
[]
[]
[]
[null,"www.acfmsc.com"]
[]
[]
[]
[]
[]
[]
[]
[]
[]
[]
[]
[]
[]
[]
[]
[]
[]
[]
[null,null,523698741]
[]
[]
[]
[]
[]
[]
[]
[]
[]
[]
[]
[]
[]
[]
[]
[]
[]
[]
[]
[]
[]
[]
[]
[]
[]
[]
[]
[]
[]
[]
[]
[]
[]
[]
[]
[]
[]
[]
[]
[]
[]
[]
[]
[]
[]
[]
[]
[]
[]
[]
[]
[]
[]
[]
[]
[]
[]
[]
[]
[]
[]
[]
[]
[]
[]
[]
[]
[]
[]
[]
[]
[]
[]
[]
[]
[]
[]
[]
[]
[]
[]
[]
[]
[]
[]
[]
[]
[]
[]
[]
[]
[]
[]
[]
[]
[]
[]
[]
[]
[]
[]
[]
[]
[]
[]
[]
[]
[]
[]
[]
[]
[]
[]
[]
[null,null,null,null,null,null,"Rangenom67"]
[]
[]
[]
[]
[]
[null,null,null,null,null,null,null,null,null,"Rangenom67"]
[]
[]
[]
[]
[]
[]
[]
[]
[]
[]
[]
[]
[]
[]
[]
[]
[]
[]
[]
[]
[]
[]
[]
[]
[]
[]
[]
[]
[]
[]
[]
[]
[]
[]
[]
[]
[]
[]
[]
[]
[]
[]
[]
[]
[]
[]
[]
[]
[]
[]
[]
[]
[null,null,null,null,null,null,null,null,null,null,null,"Len@25"]
[]
[]
[]
[]
[]
[]
[]
[]
[]
[]
[]
[]
[]
[]
[]
[]
[]
[]
[]
[]
[]
[]
[]
[]
[]
[]
[]
[]
[]
[]
[]
[]
[]
[]
[]
[]
[]
[]
[]
[]
[]
[]
[]
[]
[]
[]
[]
[]
[]
[]
[]
[]
[]
[]
[]
[]
[]
[]
[]
[]
[]
[]
[]
[]
[]
[]
[]
[]
[]
[]
[]
[]
[]
[]
[]
[]
[]
[]
[]
[]
[]
[]
[]
[]
[]
[]
[]
[]
[]
[]
[]
[]
[]
[]
[]
[]
[]
[]
[]
[]
[]
[]
[]
[]
[]
[]
[]
[]
[]
[]
[]
[]
[]
[]
[]
[]
[]
[]
[]
[]
[null,null,null,null,null,null,null,null,null,null,null,null,null,null,null,67010623]
[]
[]
[]
[]
[]
[null,null,null,null,null,null,null,null,null,null,null,null,null,null,null,null,67010623]

{"sheet":"MENU","index":1,"n_rows":16,"n_cols":3,"rows_kept":16,"cut":false,"hidden":true,"merged":[]}
[]
[]
[]
[]
[null,"Descripción","Nombre de la hoja"]
[null,"Importar archivos XML emitidos","CFDIE"]
[null,"Importar archivos XML emitidos con complemento de pago","RPAGOSE"]
[null,"Impoartar archivo de texto METADATA del SAT de los CFDI emitidos","METADATA"]
[null,"Importar archivos XML recibidos","CFDIR"]
[null,"Importar archivos XML recibidos con complemento de pago","RPAGOSR"]
[null,"Impoartar archivo de texto METADATA del SAT de los CFDI emitidos","METADATAR"]
[null,"Importar archivos XML de nómina","NOMINA"]
[null,"Determinación de los pago provisional de ISR PM régimen general de Ley","PP ISR"]
[null,"Determinación de los pagos provisionales PM RESICO","PP ISR RESICO"]
[null,"Determinación de los ingresos acumulables","INGRESOS"]
[null,"Formato para determinar las deduciones autorizadas","DEDUCCIONES"]

{"sheet":"CFDIE","index":2,"n_rows":7,"n_cols":35,"rows_kept":7,"cut":false,"hidden":true,"merged":[[5,5,5,6],[5,17,5,18],[5,19,5,21],[5,23,5,24]]}
[]
[]
[]
[]
[]
[null,null,null,null,null,"Emisor",null,null,"Receptor",null,null,null,null,null,null,null,null,"Trasladados",null,"Retenciones",null,null,null,"Aerolíneas"]
[null,"Fecha ","Tipo de comprobante","Serie y folio","Folio fiscal","RFC","NOMBRE","Régimen fiscal","RFC","Nombre ","Régimen fiscal","USO","Descripción","Objeto de impuesto","Importe","Descuento","Importe - descuento","IEPS","IVA","ISR","IVA","IEPS","Impuesto sobre hospedaje","TUA","Otros cargos","Total del comprobante","Método de pago","Forma de pago","Moneda","Tipo de cambio","Importe sin convertir","Fecha de cancelación","Tipo de relación","UUID relacionado","Ruta"]

{"sheet":"RPAGOSE","index":3,"n_rows":7,"n_cols":69,"rows_kept":7,"cut":false,"hidden":true,"merged":[[5,49,5,56],[5,57,5,64],[4,21,4,47],[5,9,5,11],[5,12,5,14],[5,15,5,20],[5,32,5,35],[5,36,5,45],[5,46,5,47]]}
[null,null,null,null,null,null,null,null,null,null,null,null,null,null,null,null,null,null,null,null,null,null,null,null,null,null,null,null,null,null,null,null,null,null,null,null,null,null,null,null,null,null,null,null,null,null,null,null,null,null,null,null,null,null,null,null,null,null,null,null,null,null,null,null,null,""]
[null,"Hoja para importar los XML emitidos con el complemento de recepción de pagos",null,null,null,null,null,null,null,null,null,null,null,null,null,null,null,null,null,null,null,null,null,null,null,null,null,null,null,null,null,null,null,null,null,null,null,null,null,null,null,null,null,null,null,null,null,null,null,null,null,null,null,null,null,null,null,null,null,null,null,null,null,null,null,""]
[null,null,null,null,null,null,null,null,null,null,null,null,null,null,null,null,null,null,null,null,null,null,null,null,null,null,null,null,null,null,null,null,null,null,null,null,null,null,null,null,null,null,null,null,null,null,null,null,null,null,null,null,null,null,null,null,null,null,null,null,null,null,null,null,null,""]
[null,null,null,null,null,null,null,null,null,null,null,null,null,null,null,null,null,null,null,null,null,null,null,null,null,null,null,null,null,null,null,null,null,null,null,null,null,null,null,null,null,null,null,null,null,null,null,null,null,null,null,null,null,null,null,null,null,null,null,null,null,null,null,null,null,""]
[null,null,null,null,null,null,null,null,null,null,null,null,null,null,null,null,null,null,null,null,null,"Complemento de recepción de pagos",null,null,null,null,null,null,null,null,null,null,null,null,null,null,null,null,null,null,null,null,null,null,null,null,null,null,null,null,null,null,null,null,null,null,null,null,null,null,null,null,null,null,null,""]
[null,null,null,null,null,null,null,null,null,"Emisor",null,null,"Receptor",null,null,"Campos generales CFDI ",null,null,null,null,null,null,null,null,null,null,null,null,null,null,null,null,"Solo que el pago se reciba en SPEI",null,null,null,"Documentos que se cobran",null,null,null,null,null,null,null,null,null,"Timbre fiscal del complemento de recepción de pagos",null,null,"Impuestos trasladados",null,null,null,null,null,null,null,"Impuestos retenidos",null,null,null,null,null,null,null,""]
[null,"Fecha de emisión","Folio","Serie","Subtotal","Moneda","Total","Tipo de comprobante","Lugar Expedicion","Rfc","Nombre","Régimen fiscal","RFC receptor","Nombre","Régimen fiscal","ClaveProdServ","Cantidad","Unidad","Descripcion","ValorUnitario","Importe","Fecha de pago","Forma de pago","MonedaP","TipoCambioP","Monto","NumOperacion","RfcEmisorCtaOrd ","NomBancoOrdExt ","CtaOrdenante","RfcEmisorCtaBen ","CtaBeneficiario","TipoCadPago ","CertPago","CadPago","SelloPago","IdDocumento ","Serie","Folio","MonedaDR ","TipoCambioDR","MetodoDePagoDR","NumParcialidad ","ImpSaldoAnt ","ImpPagado ","ImpSaldoInsoluto","Fecha de timbrado","UUID","Objeto de impuestos DR","Base para IEPS","Tipo factor","Tasa o cuota","Total IEPS trasladado del comprobante","Base para IVA","Tipo  factor","Tasa o cuota","Total IVA trasladado del comprobante","Base retención ISR","Tipo factor","Tasa o cuota","Retención de ISR","Base retención IVA","Tipo factor","Tasa o cuota","Retención IVA","USO del CFDI","Base de ISR","Ruta del archivo","Fecha de cancelación"]

{"sheet":"METADATA","index":4,"n_rows":0,"n_cols":0,"rows_kept":0,"cut":false,"hidden":true,"merged":[]}

{"sheet":"CFDIR","index":5,"n_rows":7,"n_cols":35,"rows_kept":7,"cut":false,"hidden":true,"merged":[[5,5,5,6],[5,17,5,18],[5,19,5,21],[5,23,5,24]]}
[]
[]
[]
[]
[]
[null,null,null,null,null,"Emisor",null,null,"Receptor",null,null,null,null,null,null,null,null,"Trasladados",null,"Retenciones",null,null,null,"Aerolíneas"]
[null,"Fecha ","Tipo de comprobante","Serie y folio","Folio fiscal","RFC","NOMBRE","Régimen fiscal","RFC","Nombre ","Régimen fiscal","USO","Descripción","Objeto de impuesto","Importe","Descuento","Importe - descuento","IEPS","IVA","ISR","IVA","IEPS","Impuesto sobre hospedaje","TUA","Otros cargos","Total del comprobante","Método de pago","Forma de pago","Moneda","Tipo de cambio","Importe sin convertir","Fecha de cancelación","Tipo de relación","UUID relacionado","Ruta"]

{"sheet":"RPAGOSR","index":6,"n_rows":7,"n_cols":69,"rows_kept":7,"cut":false,"hidden":true,"merged":[[5,49,5,56],[5,57,5,64],[4,21,4,47],[5,9,5,11],[5,12,5,14],[5,15,5,20],[5,32,5,35],[5,36,5,45],[5,46,5,47]]}
[null,null,null,null,null,null,null,null,null,null,null,null,null,null,null,null,null,null,null,null,null,null,null,null,null,null,null,null,null,null,null,null,null,null,null,null,null,null,null,null,null,null,null,null,null,null,null,null,null,null,null,null,null,null,null,null,null,null,null,null,null,null,null,null,null,""]
[null,"Hoja para importar los XML emitidos con el complemento de recepción de pagos",null,null,null,null,null,null,null,null,null,null,null,null,null,null,null,null,null,null,null,null,null,null,null,null,null,null,null,null,null,null,null,null,null,null,null,null,null,null,null,null,null,null,null,null,null,null,null,null,null,null,null,null,null,null,null,null,null,null,null,null,null,null,null,""]
[null,null,null,null,null,null,null,null,null,null,null,null,null,null,null,null,null,null,null,null,null,null,null,null,null,null,null,null,null,null,null,null,null,null,null,null,null,null,null,null,null,null,null,null,null,null,null,null,null,null,null,null,null,null,null,null,null,null,null,null,null,null,null,null,null,""]
[null,null,null,null,null,null,null,null,null,null,null,null,null,null,null,null,null,null,null,null,null,null,null,null,null,null,null,null,null,null,null,null,null,null,null,null,null,null,null,null,null,null,null,null,null,null,null,null,null,null,null,null,null,null,null,null,null,null,null,null,null,null,null,null,null,""]
[null,null,null,null,null,null,null,null,null,null,null,null,null,null,null,null,null,null,null,null,null,"Complemento de recepción de pagos",null,null,null,null,null,null,null,null,null,null,null,null,null,null,null,null,null,null,null,null,null,null,null,null,null,null,null,null,null,null,null,null,null,null,null,null,null,null,null,null,null,null,null,""]
[null,null,null,null,null,null,null,null,null,"Emisor",null,null,"Receptor",null,null,"Campos generales CFDI ",null,null,null,null,null,null,null,null,null,null,null,null,null,null,null,null,"Solo que el pago se reciba en SPEI",null,null,null,"Documentos que se cobran",null,null,null,null,null,null,null,null,null,"Timbre fiscal del complemento de recepción de pagos",null,null,"Impuestos trasladados",null,null,null,null,null,null,null,"Impuestos retenidos",null,null,null,null,null,null,null,""]
[null,"Fecha de emisión","Folio","Serie","Subtotal","Moneda","Total","Tipo de comprobante","Lugar Expedicion","Rfc","Nombre","Régimen fiscal","RFC receptor","Nombre","Régimen fiscal","ClaveProdServ","Cantidad","Unidad","Descripcion","ValorUnitario","Importe","Fecha de pago","Forma de pago","MonedaP","TipoCambioP","Monto","NumOperacion","RfcEmisorCtaOrd ","NomBancoOrdExt ","CtaOrdenante","RfcEmisorCtaBen ","CtaBeneficiario","TipoCadPago ","CertPago","CadPago","SelloPago","IdDocumento ","Serie","Folio","MonedaDR ","TipoCambioDR","MetodoDePagoDR","NumParcialidad ","ImpSaldoAnt ","ImpPagado ","ImpSaldoInsoluto","Fecha de timbrado","UUID","Objeto de impuestos DR","Base para IEPS","Tipo factor","Tasa o cuota","Total IEPS trasladado del comprobante","Base para IVA","Tipo  factor","Tasa o cuota","Total IVA trasladado del comprobante","Base retención ISR","Tipo factor","Tasa o cuota","Retención de ISR","Base retención IVA","Tipo factor","Tasa o cuota","Retención IVA","USO del CFDI","Base de ISR","Ruta del archivo","Fecha de cancelación"]

{"sheet":"METADATAR","index":7,"n_rows":0,"n_cols":0,"rows_kept":0,"cut":false,"hidden":true,"merged":[]}

{"sheet":"NOMINA","index":8,"n_rows":5,"n_cols":72,"rows_kept":5,"cut":false,"hidden":true,"merged":[[3,51,3,52],[3,53,3,56],[3,57,3,61],[3,62,3,66],[3,67,3,69]]}
[]
[]
[]
[null,null,null,null,null,null,null,null,null,null,null,null,null,null,null,null,null,null,null,null,null,null,null,null,null,null,null,null,null,null,null,null,null,null,null,null,null,null,null,null,null,null,null,null,null,null,null,null,null,null,null,"Vanta acciones",null,"Tiempo extra",null,null,null,"Jubilaciones, pensiones, retiro",null,null,null,null,"Pagos por separación",null,null,null,null,"Incapacidades"]
[null,"Fecha de emisión","Fecha de timbrado","UUID","Concepto","Serie","Folio","Forma de pago","Metodo de pago","Moneda","Registro patronal","Nombre del patron","Riesgo de puesto","Concepto riesgo de puesto (este dato no pertenece al XML)","No. De empleado","Nombre del empleado","Departamento","Puesto","Clave de la entidad federrativa","Estado (este dato no pertenece al XML)","CURP","RFC","No. SS","Fecha inicio relación laboral","Salario diario integrado","Salario base de cotización","Tipo de regimen","Tipo de régimen (este dato no pertenece al XML)","Tipo de jornada","Tipo de jornada (este dato no pertenece al XML)","Tipo de contrato","Tipo de contrato (este dato no pertenece al XML)","Antigüedad","Fecha inicial pago","Fecha final pago","Fecha de pago","Periodicidad de pago","Periodicidad de pago  (este dato no pertenece al XML)","Clave de percepción","Percepción","Percepción de acuerdo al catálogo del SAT  (este dato no pertenece al XML)","Percepción exenta","Percepción gravado","Clave de deducción","Deducción","Deducción de acuerdo al catálogo del SAT  (este dato no pertenece al XML)","Importe deducción","Total del comprobante","Tipo de relación","UUID tipo de relación","Subsidio al empleo causado","Valor de mercado","Precio al otorgarse","Días","Tipo de horas","Horas extras","Importe pagado","Total en una sola exhibición","Total parcialidad","Monto diario","Ingreso acumulable","Ingreso no acumulable","Total pagado","No. de años de servicio","Último sueldo mensual ordinario","Ingreso acumulable","Ingreso no acumulable","Días de incapacidad","Tipo de incapacidad","Importe monetario","Dìas pagados","Ruta"]

{"sheet":"PP ISR","index":9,"n_rows":42,"n_cols":14,"rows_kept":42,"cut":false,"hidden":true,"merged":[]}
[]
[]
[null,"Determinación de los pagos provisionales PM RGL"]
[null,"Año de cálculo",2025]
[]
[null,null,"Enero","Febrero","Marzo","Abril","Mayo","Junio","Julio","Agosto","Septiembre","Octubre","Noviembre","Diciembre"]
[null,"Ingresos nominales facturados"]
[null,"Clientes nacionales"]
[null,"Clientes extranjeros"]
[null,"(-) Ingresos a disminuir"]
[null,"IEPS/ISAN cobrado no trasladado de manera expresa y por separado"]
[null,"Ingresos acumulados en periodos anteriores"]
[null,"Ingresos del extranjero sujetos a retención o pago de impuesto"]
[null,"Ingresos facturados a cuenta de terceros"]
[null,"Ingresos exentos, derivados de las inversiones efectuadas por fondos de pensiones y jubilaciones constituidas en el extranjero"]
[null,"Ingresos factuados en los que se determinó ganancia por enajenación"]
[null,"Ingresos facturados en los que se determinó fluctuación cambiaria"]
[null,"Ingresos facturados no cobrados en el periodo (sociedades o asociaciones civiles)"]
[null,"Ingresos facturados pendientes de cancelación con aceptación del receptor"]
[null,"Por acumulación del cobro total o parcial del precio en el ejercicio"]
[null,"(+) Ingresos a adicionar"]
[null,"Envío o entrega del bien o prestación del servicio así como cuando se cobre o sea exigible el precio o la contraprestación pactada."]
[null,"Ganancia efectivamente percibida por fluctuación cambiaria"]
[null,"Ganancia por enajenación"]
[null,"Ingresos del extranjero"]
[null,"Ingresos derivados de deudas no cubiertas"]
[null,"Ingresos facturados de periodos anteriores cobrados en el periodo (sociedades o asociaciones civiles)"]
[null,"Intereses (Artículo 8 LISR)"]
[null,"(=) Ingresos nominales del mes"]
[null,"(=) Ingresos nominales del periodo"]
[null,"(x) Coeficiente de utilidad",1.098E-2,{"$f":"C31","v":1.098E-2},1.098E-2,1.098E-2,1.098E-2,1.098E-2,1.098E-2,1.098E-2,1.098E-2,1.098E-2,1.098E-2,1.098E-2]
[null,"(=) Resultado"]
[null,"(-) PTU pagada"]
[null,"(-) Anticipos o rendimientos (s.c. o a.c.)"]
[null,"(-) Pérdidas fiscales"]
[null,"(=) Utilidad fiscal"]
[null,"(x) Tasa de ISR",0.3,0.3,0.3,0.3,0.3,0.3,0.3,0.3,0.3,0.3,0.3,0.3]
[null,"(=) ISR causado"]
[null,"(-) Acreditamiento ISR por dividendos"]
[null,"(-) Pagos provisionales efectuados con anterioridad"]
[null,"(-) Retención de ISR bancario"]
[null,"(=) ISR por pagar"]

{"sheet":"PP ISR RESICO","index":10,"n_rows":74,"n_cols":14,"rows_kept":74,"cut":false,"hidden":true,"merged":[]}
[]
[]
[]
[null,"Año de cálculo",2025]
[]
[null,null,"Enero","Febrero","Marzo","Abril","Mayo","Junio","Julio","Agosto","Septiembre","Octubre","Noviembre","Diciembre"]
[null,"Ingresos nominales facturados"]
[null,"Clientes nacionales"]
[null,"Clientes extranjeros"]
[null,"(-) Ingresos a disminuir"]
[null,"IEPS/ISAN cobrado no trasladado de manera expresa y por separado"]
[null,"Ingresos acumulados en periodos anteriores"]
[null,"Ingresos del extranjero sujetos a retención o pago de impuesto"]
[null,"Ingresos facturados a cuenta de terceros"]
[null,"Ingresos factuados en los que se determinó ganancia por enajenación"]
[null,"Ingresos facturados en los que se determinó fluctuación cambiaria"]
[null,"Ingresos facturados pendientes de cancelación con aceptación del receptor"]
[null,"(+) Ingresos a adicionar"]
[null,"Ganancia efectivamente percibida por fluctuación cambiaria"]
[null,"Ganancia por enajenación"]
[null,"Ingresos del extranjero"]
[null,"Ingresos derivados de deudas no cubiertas"]
[null,"Ingresos facturados no considerados en el prellenado"]
[null,"Intereses (Artículo 8 LISR)"]
[null,"(=) Ingresos nominales del mes"]
[null,"(=) Ingresos nominales del periodo"]
[]
[null,"(-) Compras y gastos del periodo"]
[null,"Gastos de nómina del periodo no considerados en el prellenado"]
[null,"Nómina gravada timbrada (excepto PTU, viáticos)"]
[null,"Nómina gravada timbrada (excepto PTU, viáticos)"]
[null,"(x) Factor de no deducibles"]
[null,"(=) Nomina no deducible de los exentos"]
[null,"(+) Otros gastos relacionados con la nómina"]
[null,"(+) Compras y gastos del mes  "]
[null,"Compras y gastos facturados del mes"]
[null,"CFDI recibidos con método de pago PUE, bancariados"]
[null,"Con clave de uso Adquisición de mercancía (G01)"]
[null,"Con clave de uso Gastos generales  (G03)"]
[null,"CFDI recibidos con complemento de pago"]
[null,"Con clave de uso Adquisición de mercancía (G01)"]
[null,"Con clave de uso Gastos generales  (G03)"]
[null,"(+) Devoluciones, descuentos y bonificaciones facturadas del mes"]
[null,"(-) Compras y gastos no deducibles del mes"]
[null,"(+) Compras y gastos del mes no considerados en el pre llenado"]
[null,"(-) Facturas de egresos recibidas por compras y gastos del mes"]
[null,"(+) Estímulos fiscales por aplicar"]
[null,"Deducción adicional por enajenación de libros, periiódicos y revistas"]
[null,"Deducción del 25% del salario efectivamente pagado por la contratación de personas mayores a 65 años"]
[null,"Deducción del 25% del salario efectivamente pagado por la contratación de personas que padezcan alguna incapacidad"]
[null,"(=) Compras y gastos deducibles del mes"]
[null,"(=) Compras y gastos del periodo"]
[]
[null,"(-) PTU pagada"]
[null,"PTU pagada del mes"]
[null,"PTU pagada del periodo"]
[null,"(-) Pérdidas fiscales de ejercicios anteriores que se aplican en el periodo"]
[null,"(=) Utilidad fiscal"]
[null,"(x) Tasa de ISR"]
[null,"(=) ISR causado"]
[null,"(-) Estímulos fiscales"]
[null,"Producción cinematográfica"]
[null,"Estíulos a proyectos de inversión en las artes"]
[null,"Estímulo por la inversión en proyectos y programas para el deporte de alto rendimiento"]
[null,"Crédito IEPS diésel automotriz para transporte público de personas"]
[null,"Crédito IEPS diésel automotriz para transporte público de carga"]
[null,"Crédito IEPS diésel automotriz para transporte público turístico"]
[null,"Crédito 50% en el pago de peaje para trnasporte público de personas"]
[null,"Crédito 50% en el pago de peaje para trnasporte público de carga"]
[null,"Crédito 50% en el pago de peaje para trnasporte público turistico"]
[null,"(-) Acreditamiento ISR por dividendos"]
[null,"(-) Pagos provisionales efectuados con anterioridad"]
[null,"(-) Retención de ISR bancario"]
[null,"(=) ISR por pagar"]

{"sheet":"DISMINUCION","index":11,"n_rows":60,"n_cols":8,"rows_kept":60,"cut":false,"hidden":true,"merged":[[17,0,18,0],[17,1,17,9],[18,1,18,9],[2,1,2,10],[3,1,3,10],[4,1,4,10],[5,1,5,10],[6,1,6,10],[7,1,7,10],[8,1,8,10],[9,1,9,10],[10,1,10,10],[11,1,11,10],[12,1,12,10],[55,0,57,0],[55,1,55,9],[56,1,56,9],[57,1,57,9],[20,0,21,0],[20,1,20,9],[21,1,21,9],[23,1,23,9],[25,1,25,9],[27,1,27,13],[59,1,59,9],[29,1,29,9],[31,1,31,9],[33,7,51,9],[53,1,53,9]]}
[]
[]
[null,"Ingresos por disminuir en pagos provisionales"]
["①","IEPS/ISAN cobrado no trasladado de manera expresa y por separado"]
["②","Ingresos acumulados en periodos anteriores"]
["③","Ingresos del extranjero sujetos a retención o pago de impuestos"]
["④","Ingresos exentos, derivados de las inversiones efectuadas por fondos de pensiones y jubilaciones constituidas en el extranjero"]
["⑤","Ingresos facturados a cuenta de terceros"]
["⑥","Ingreso facturados en los que se determinó ganancia por enajenación"]
["⑦","Ingresos facturados en los que se detrminó ganancia por fluctuación cambiaria"]
["⑧","Ingresos facturados no cobrados en el periodo (sociedades o asociaciones civiles"]
["⑨","Ingresos facturados pendientes de cancelación con aceptación del receptor)"]
["⑩","Por acumulación del cobro total o parcial del precio en el ejercicio"]
[]
[]
[]
[]
["①","Artículo 19 LIEPS.- Los contribuyentes a que se refiere esta Ley tienen, además de las obligaciones señaladas en otros artículos de la misma y en las demás disposiciones fiscales, las siguientes:\nII. Expedir comprobantes fiscales, sin el traslado en forma expresa y por separado del impuesto establecido en esta Ley, salvo tratándose de la enajenación de los bienes a que se refieren los incisos A), D), F), G), I) y J) de la fracción I del artículo 2o. de esta Ley, siempre que el adquirente sea a su vez contribuyente de este impuesto por dichos bienes y así lo solicite."]
[null,"Artículo 11 LISAN tercer párrafo\nLos fabricantes, ensambladores, distribuidores autorizados de automóviles o comerciantes en el ramo de vehículos, no harán la separación del monto de este impuesto en el documento que ampare la enajenación. "]
[]
["②","En declaraciones anteriores se adiciono ingreso nominal por las cantidades que se disminuyeron en este campo"]
[null,"El ingreso se acumulo con un CFDI de tipo ingreso por anticipo recibido"]
[]
["③","Artículo 14 séptimo párrafo LISR\nLos contribuyentes, para determinar los pagos provisionales a que se refiere el presente artículo, estarán a lo siguiente:\n\na)\tNo se considerarán los ingresos de fuente de riqueza ubicada en el extranjero que hayan sido objeto de retención por concepto de impuesto sobre la renta ni los ingresos atribuibles a sus establecimientos ubicados en el extranjero que estén sujetos al pago del impuesto sobre la renta en el país donde se encuentren ubicados estos establecimientos."]
[]
["④","Artículo 272 RLISR. Para efectos del artículo 153 de la Ley, cuando los fondos de pensiones y jubilaciones constituidos en términos de la legislación del país de que se trate participen de manera directa en el capital de personas morales residentes en el extranjero, o bien, inviertan directamente en fondos de inversión residentes en el extranjero, los ingresos que obtengan directamente dichas personas morales o fondos de inversión por la enajenación u otorgamiento del uso o goce temporal de terrenos o construcciones adheridas al suelo ubicados en México, o por la enajenación de acciones cuyo valor provenga en más de un 50% de dichos conceptos, también estarán sujetos a la exención establecida en el artículo 153, párrafo noveno de la Ley.\n........................"]
[]
["⑤","Expedición de CFDI por comisionistas y prestadores de servicios de cobranza\n2.7.1.3.\tPara los efectos del artículo 29, primero y penúltimo párrafos y 29-A del CFF, así como 32, fracción III de la Ley del IVA, los contribuyentes que actúen como comisionistas o que presten servicios de cobranza, podrán expedir CFDI a nombre y por cuenta de los comitentes o prestatarios con los que tengan celebrado el contrato de comisión o prestación de servicios de cobranza, respecto de las operaciones que realicen en su calidad de comisionistas o prestadores de servicio de cobranza.\nPara estos efectos, los comprobantes deberán cumplir además de los requisitos a que se refieren los artículos 29 y 29-A del CFF, con la siguiente información:\nI.\tLa clave en el RFC del comitente o del prestatario.\nII.\tMonto correspondiente a los actos o actividades realizados por cuenta del comitente o prestatario.\nIII.\tImpuesto que se traslada o se retiene por cuenta del comitente o prestatario.\nIV.\tTasa del impuesto que se traslada o se retiene por cuenta del comitente o prestatario.\nEn el CFDI que se expida, se deberá incorporar la sección “AcuentaTerceros”.\nCon independencia de lo señalado en la presente regla, el comisionista o prestador de servicios estará obligado a expedir al comitente o prestatario el CFDI correspondiente a la comisión o prestación del servicio respectivo.\nCuando los contribuyentes que hayan optado por aplicar esta regla, incumplan lo establecido en la misma, perderán el derecho de aplicar la facilidad que en la misma se detalla, siendo el comitente o el prestatario el responsable de la emisión del CFDI.\nCFF 29, 29-A, LIVA 32, RLIVA 35, RMF 2024 2.7.1.8."]
[]
["⑥","Artículo 18 LISR. Para los efectos de este Título, se consideran ingresos acumulables, además de los señalados en otros artículos de esta Ley, los siguientes:\n\nIV.\tLa ganancia derivada de la enajenación de activos fijos y terrenos, títulos valor, acciones, partes sociales o certificados de aportación patrimonial emitidos por sociedades nacionales de crédito, así como la ganancia realizada que derive de la fusión o escisión de sociedades y la proveniente de reducción de capital o de liquidación de sociedades mercantiles residentes en el extranjero, en las que el contribuyente sea socio o accionista."]
[]
["⑦","Artículo 12 RLISR. Para efectos de los artículos 16 y 90 de la Ley, las personas morales y físicas residentes en México que se dediquen a la compra y venta de divisas, distintas a las casas de cambio, deberán acumular los ingresos determinados de conformidad con los artículos 8, 18, fracción IX, 44, 45, 46, 133 y 134 de la Ley, tomando en consideración sólo la ganancia efectivamente percibida y deberán estar soportados en la contabilidad del contribuyente. Lo anterior, con independencia de los demás ingresos que perciban."]
[]
[null,null,null,null,null,null,null,"Complementos para incorporar información fiscal en los CFDI\n2.7.1.8.\tPara los efectos del artículo 29, segundo párrafo, fracciones III y VI del CFF, el SAT publicará en su Portal los complementos que permitan a los contribuyentes de sectores o actividades específicas, incorporar requisitos fiscales en los CFDI que expidan.\nLos complementos que el SAT publique en su Portal, serán de uso obligatorio para los contribuyentes que les aplique, pasados treinta días naturales, contados a partir de su publicación en el citado Portal, salvo cuando exista alguna facilidad o disposición que establezca un periodo diferente o los libere de su uso.\nPara el registro de los datos solicitados en los referidos complementos, se deberán aplicar los criterios establecidos en las Guías de llenado que al efecto se publiquen en el citado Portal.\nCFF 29"]
[]
[]
[]
[]
[]
[]
[]
[]
[]
[]
[]
[]
[]
[]
[]
[]
[]
[]
[]
["⑧","Artículo 17 fracción I segundo párrafo LISR.\nTratándose de los ingresos por la prestación de servicios personales independientes que obtengan las sociedades o asociaciones civiles y de ingresos por el servicio de suministro de agua potable para uso doméstico o de recolección de basura doméstica que obtengan los organismos descentralizados, los concesionarios, permisionarios o empresas autorizadas para proporcionar dichos servicios, se considera que los mismos se obtienen en el momento en que se cobre el precio o la contraprestación pactada."]
[]
["⑨","Artículo 29-A CFF. Los comprobantes fiscales digitales a que se refiere el artículo 29 de este Código, deberán contener los siguientes requisitos:\nCuarto párrafo\nSalvo que las disposiciones fiscales prevean un plazo menor, los comprobantes fiscales digitales por Internet sólo podrán cancelarse en el ejercicio en el que se expidan y siempre que la persona a favor de quien se expidan acepte su cancelación."]
[null,"Plazos para la cancelación de CFDI\n2.7.1.47.\tPara los efectos del artículo 29-A, cuarto párrafo del CFF, la cancelación de los CFDI se podrá efectuar a más tardar en el mes en el cual se deba presentar la declaración anual del ISR correspondiente al ejercicio fiscal en el cual se expidió el citado comprobante.\nCFF 29-A"]
[null,"Artículo 29-A CFF. Los comprobantes fiscales digitales a que se refiere el artículo 29 de este Código, deberán contener los siguientes requisitos:\nSexto párrafo\nCuando los contribuyentes cancelen comprobantes fiscales digitales por Internet que amparen ingresos, deberán justificar y soportar documentalmente el motivo de dicha cancelación, misma que podrá ser verificada por las autoridades fiscales en el ejercicio de las facultades establecidas en este Código."]
[]
["⑩","Artículo 17 LISR.\n\nIII.\tObtención de ingresos provenientes de contratos de arrendamiento financiero, los contribuyentes podrán optar por considerar como ingreso obtenido en el ejercicio el total del precio pactado o la parte del precio exigible durante el mismo."]

{"sheet":"INGRESOS","index":12,"n_rows":143,"n_cols":5,"rows_kept":143,"cut":false,"hidden":true,"merged":[]}
[]
[]
[]
[null,"Persona moral régimen general de Ley"]
[]
[null,"INGRESOS EXENTOS O NO ACUMULABLES",{"$f":"IFERROR(C8+C12,0)","v":0}]
[]
[null,"Ingresos Exentos",{"$f":"SUM(C9:C10)","v":0}]
[null,"Sin ingresos exentos "]
[null,"Ingresos exentos, derivados de las inversiones efectuadas por fondos de pensiones y jubilaciones constituidas en el extranjero "]
[]
[null,"Ingresos no acumulables",{"$f":"SUM(C13:C19)","v":0}]
[null,"Aumento de capital "]
[null,"Pago de pérdida por accionistas "]
[null,"Primas obtenidas en colocación de acciones "]
[null,"Valuar acciones con método de participación "]
[null,"Ingresos no atribuibles a un establecimiento permanente la simple remesa que obtenga de la oficina central de la persona moral "]
[null,"Dividendos o utilidades de otras personas morales residentes en México "]
[null,"Ingresos por apoyos a través de programas de la federación o entidades federativas. "]
[]
[null,"INGRESOS NOMINALES",{"$f":"SUM(C22:C49)","v":0}]
[null,"Anticipos de clientes del ejercicio "]
[null,"Ganancia cambiaria "]
[null,"Ganancia en la enajenación de acciones o por reembolso de capital "]
[null,"Ganancia en la enajenación de terrenos y activo fijo "]
[null,"Ganancia por pago en especie "]
[null,"Ingresos obtenidos por apoyos gubernamentales "]
[null,"Ingresos por partidas discontinuas y extraordinarias "]
[null,"Intereses devengados a favor del extranjero "]
[null,"Intereses devengados a favor nacionales "]
[null,"Intereses moratorios a favor del extranjero "]
[null,"Intereses moratorios a favor nacionales "]
[null,"Mejoras en construcciones e instalaciones "]
[null,"Otras operaciones financieras extranjeras "]
[null,"Otras operaciones financieras nacionales "]
[null,"Otros ingresos o productos "]
[null,"Por adjudicación judicial "]
[null,"Recuperación de cuentas incobrables "]
[null,"Recuperación por seguros y fianzas "]
[null,"Utilidad en participación subsidiaria "]
[null,"Ventas y/o servicios extranjeros ",null,{"$f":"IFERROR(ROUND(SUM('PP ISR'!C9:N9,'PP ISR'!C25:N25)-SUM('PP ISR'!C13:N13),0),0)","v":0},"Información de la hoja PP ISR"]
[null,"Ventas y/o servicios nacionales ",null,{"$f":"IFERROR(ROUND('PP ISR'!N30-D41,0),0)","v":0},"Información de la hoja PP ISR"]
[null,"Utilidad fiscal en la enajenación de bienes adjudicados "]
[null,"Ganancia por operaciones derivadas referidas a tipo de cambio "]
[null,"Utilidad fiscal por enajenación o cesión de cartera "]
[null,"Recuperaciones de cartera de crédito "]
[null,"Ingreso acumulable por liberación de reservas "]
[null,"Primas emitidas "]
[null,"Consolidación de la nuda propiedad y el usufructo de un bien "]
[]
[null,"AJUSTE ANUAL POR INFLACIÓN ACUMULABLE"]
[]
[null,"INGRESOS QUE SOLO SE ACUMULAN EN LA DECLARACIÓN ANUAL",{"$f":"IFERROR(C54+C78+C79,0)","v":0}]
[null,"Ingresos que solo se acumulan en la declaración anual",{"$f":"IFERROR(SUM(C55:C77),0)","v":0}]
[null,"Utilidad distribuida por fideicomiso"]
[null,"Ajuste derivado por precios de transferencias de partes relacionadas"]
[null,"Ganancia por enajenación total del activo"]
[null,"Opción de acumulación de ingresos por cobro total o parcial del precio"]
[null,"Ingresos por fideicomisos inmobiliarios"]
[null,"Estímulo fiscal acumulable \"Crédito IEPS Diésel para maquinaria general, excepto vehiculos\""]
[null,"Estímulo fiscal acumulable \"Crédito IEPS vehículos marinos\""]
[null,"Estímulo fiscal acumulable \"Crédito IEPS diésel medios de transporte de baja velocidad o bajo perfil\""]
[null,"Estímulo fiscal acumulable \"Crédito IEPS Diésel para actividades agropecuarias o silvícolas por aplicarción de factor\""]
[null,"Estímulo fiscal acumulable \"Crédito IEPS Diésel Automotriz para Transporte Público de Personas\""]
[null,"Estímulo fiscal acumulable \"Crédito IEPS Diésel Automotriz para Transporte Público de Carga\""]
[null,"Estímulo fiscal acumulable \"Crédito IEPS Diésel Automotriz para Transporte Público de Turístico\""]
[null,"Estímulo fiscal acumulable \"Crédito IEPS Diésel Automotriz para Transporte Privado de Personas\""]
[null,"Estímulo fiscal acumulable \"Crédito IEPS Diésel Automotriz para Transporte Privado de Carga\""]
[null,"Estímulo fiscal acumulable \"Crédito IEPS Diésel Automotriz para Transporte Privado de Turístico\""]
[null,"Estímulo fiscal acumulable \"Crédito 50% en el pago de peaje para Transporte Público de Personas\""]
[null,"Estímulo fiscal acumulable \"Crédito 50% en el pago de peaje para Transporte Público de Carga\""]
[null,"Estímulo fiscal acumulable \"Crédito 50% en el pago de peaje para Transporte Público de Turístico\""]
[null,"Estímulo fiscal acumulable \"Crédito 50% en el pago de peaje para Transporte Privado de Personas\""]
[null,"Estímulo fiscal acumulable \"Crédito 50% en el pago de peaje para Transporte Privado de Carga\""]
[null,"Estímulo fiscal acumulable \"Crédito 50% en el pago de peaje para Transporte Privado de Turístico\""]
[null,"Estículo fiscal acumulable \"Crédito IEPS combustibles fósiles\""]
[null,"3% Del costo de adquisición de terrenos deducido, de conformidad en el art. 191 LISR"]
[null,"INGRESOS PROCEDENTES DE FUENTE UBICADA EN EL EXTRANJERO"]
[null,"INGRESOS DEL EXTRANJERO POR DIVIDENDOS DISTRIBUIDOS"]
[]
[null,"TOTAL DE INGRESOS ACUMULABLES",{"$f":"IFERROR(ROUND(C21+C51+C53,0),0)","v":0}]
[]
[]
[]
[]
[null,"Persona moral RESICO"]
[null,"INGRESOS EXENTOS O NO ACUMULABLES",{"$f":"IFERROR(C89+C93,0)","v":0}]
[]
[null,"Ingresos Exentos",{"$f":"SUM(C90:C91)","v":0}]
[null,"Sin ingresos exentos "]
[null,"Ingresos exentos, derivados de las inversiones efectuadas por fondos de pensiones y jubilaciones constituidas en el extranjero "]
[]
[null,"Ingresos no acumulables",{"$f":"SUM(C94:C100)","v":0}]
[null,"Aumento de capital "]
[null,"Pago de pérdida por accionistas "]
[null,"Primas obtenidas en colocación de acciones "]
[null,"Valuar acciones con método de participación "]
[null,"Ingresos no atribuibles a un establecimiento permanente la simple remesa que obtenga de la oficina central de la persona moral "]
[null,"Dividendos o utilidades de otras personas morales residentes en México "]
[null,"Ingresos por apoyos a través de programas de la federación o entidades federativas. "]
[]
[null,"Ingresos acumulables",{"$f":"SUM(C103:C119)","v":0}]
[null,"Beneficio por mejoras que pasan a propiedad del arrendador"]
[null,"Cantidades percibidas para gastos por cuenta de terceros"]
[null,"Consolidación de la nuda propiedad y el usufructo de un bien"]
[null,"Enajenación de bienes"]
[null,"Ganancia derivada de la transmisión de propiedad de bienes por pago en especie"]
[null,"Ganancia por enajenación de activos y títulos"]
[null,"Ingresos derivados de deudas no cubiertas"]
[null,"Ingresos por indemnización del seguro de hombre clave"]
[null,"Intereses"]
[null,"Otorgamiento del uso o goce temporal de bienes cuando se cobren total o parcialmente las contraprestaciones"]
[null,"Prestación de servicios nacionales"]
[null,"Cantidades recibidas en efectivo por prestamos, aportaciones para futuros aumentos de capital o aumentos de capital"]
[null,"Recuperación por seguros y fianzas"]
[null,"Ganancia en la enajenación de terrenos y activo fijo"]
[null,"Prestación de servicios extranjeros"]
[null,"Ventas nacionales",null,{"$f":"IFERROR(SUM('PP ISR RESICO'!C8:N8),0)","v":0},"Información de la hoja PP ISR RESICO"]
[null,"Ventas extranjeras",null,{"$f":"IFERROR(SUM('PP ISR RESICO'!C9:N9),0)","v":0},"Información de la hoja PP ISR RESICO"]
[]
[null,"INGRESOS QUE SOLO SE ACUMULAN EN LA DECLARACIÓN ANUAL",{"$f":"IFERROR(C122+C142+C143,0)","v":0}]
[null,"Ingresos que solo se acumulan en la declaración anual",{"$f":"IFERROR(SUM(C123:C141),0)","v":0}]
[null,"Estímulo fiscal acumulable \"Crédito IEPS Diésel para maquinaria general, excepto vehiculos\""]
[null,"Estímulo fiscal acumulable \"Crédito IEPS vehículos marinos\""]
[null,"Estímulo fiscal acumulable \"Crédito IEPS diésel medios de transporte de baja velocidad o bajo perfil\""]
[null,"Estímulo fiscal acumulable \"Crédito IEPS Diésel para actividades agropecuarias o silvícolas por aplicarción de factor\""]
[null,"Estímulo fiscal acumulable \"Crédito IEPS Diésel Automotriz para Transporte Público de Personas\""]
[null,"Estímulo fiscal acumulable \"Crédito IEPS Diésel Automotriz para Transporte Público de Carga\""]
[null,"Estímulo fiscal acumulable \"Crédito IEPS Diésel Automotriz para Transporte Público de Turístico\""]
[null,"Estímulo fiscal acumulable \"Crédito IEPS Diésel Automotriz para Transporte Privado de Personas\""]
[null,"Estímulo fiscal acumulable \"Crédito IEPS Diésel Automotriz para Transporte Privado de Carga\""]
[null,"Estímulo fiscal acumulable \"Crédito IEPS Diésel Automotriz para Transporte Privado de Turístico\""]
[null,"Estímulo fiscal acumulable \"Crédito 50% en el pago de peaje para Transporte Público de Personas\""]
[null,"Estímulo fiscal acumulable \"Crédito 50% en el pago de peaje para Transporte Público de Carga\""]
[null,"Estímulo fiscal acumulable \"Crédito 50% en el pago de peaje para Transporte Público de Turístico\""]
[null,"Estímulo fiscal acumulable \"Crédito 50% en el pago de peaje para Transporte Privado de Personas\""]
[null,"Estímulo fiscal acumulable \"Crédito 50% en el pago de peaje para Transporte Privado de Carga\""]
[null,"Estímulo fiscal acumulable \"Crédito 50% en el pago de peaje para Transporte Privado de Turístico\""]
[null,"Estículo fiscal acumulable \"Crédito IEPS combustibles fósiles\""]
[null,"Estímulo fiscal acumulable \"Acreditamiento del pago del derecho especial sobre mineriía\""]
[null,"Ganancia por enajenación total de activo"]
[null,"INGRESOS PROCEDENTES DE FUENTE UBICADA EN EL EXTRANJERO"]
[null,"INGRESOS DEL EXTRANJERO POR DIVIDENDOS DISTRIBUIDOS"]

{"sheet":"DEDUCCIONES","index":13,"n_rows":459,"n_cols":8,"rows_kept":459,"cut":false,"hidden":true,"merged":[[179,2,179,3],[158,2,158,3],[163,2,163,3],[167,2,167,3],[171,2,171,3],[175,2,175,3],[131,2,131,3],[136,2,136,3],[141,2,141,3],[146,2,146,3],[150,2,150,3],[125,2,125,3],[97,2,97,3],[104,2,104,3],[109,2,109,3],[117,2,117,3],[121,2,121,3],[315,2,315,3],[322,2,322,3],[327,2,327,3],[335,2,335,3],[339,2,339,3],[343,2,343,3],[349,2,349,3],[354,2,354,3],[359,2,359,3],[364,2,364,3],[393,2,393,3],[397,2,397,3],[368,2,368,3],[376,2,376,3],[381,2,381,3],[385,2,385,3],[389,2,389,3]]}
[]
[]
[null,"Persona moral régimen general de Ley"]
[null,"Ejercicio",2025]
[]
[null,"SUELDOS, SALARIOS Y ASIMILADOS",{"$f":"IFERROR(ROUND(C12+C16-C17,0),0)","v":0}]
[null,null,null,"Exento","Gravado"]
[null,"Nómina por sueldos y salarios",null,0,0]
[null,"(-) Ajuste a gravados y exentos",null,0,0]
[null,"(x) Factor de no deducibles",null,0.53]
[null,"(=) Nómina no deducible",null,0]
[null,"Nómina por sueldos y salarios deducibles",0]
[null,"Asimilados a salarios",null,0,0]
[null,"(-) Ajuste a asimilados a salarios",null,null,0]
[null,"(-) Asimilados a salarios no deducibles"]
[null,"(=) Asimilados a salarios deducibles",0]
[null,"Mano de obra a aplicar en costo de lo vendido"]
[]
[null,"GASTOS",{"$f":"IFERROR(ROUND(SUM(C20:C82),0),0)","v":0}]
[null,"Anticipos y rendimientos de sociedades civiles y cooperativas"]
[null,"Viáticos y gastos de viaje",null,null,null,"Datos de los CFDI recibidos (dato informativo que no pertenece a la declaración)"]
[null,"Honorarios pagados a personas físicas/RESICO",null,null,null,"Con clave de uso G01 (adquisición de mercancía)"]
[null,"Uso o goce temporal de bienes pagados a personas físicas",null,null,null,"CFDI recibidos de tipo ingreso con método de pago PUE"]
[null,"  Devoluciones, descuentos y bonificaciones",null,null,null,"(+) CFDI emitidos de tipo ingreso con método de pago PPD"]
[null,"  Adquisición de bienes de importación (cumplir requisitos legales)",null,null,null,"Con clave de uso G03 (gastos en general)"]
[null,"  Asistencia técnica",null,null,null,"CFDI recibidos de tipo ingreso con método de pago PUE"]
[null,"  Asistencia técnica de transferencia de tecnología o de regalías",null,null,null,"CFDI recibidos de tipo ingreso con método de pago PPD"]
[null,"  Combustibles y lubricantes",null,null,null,"(-) CFDI recibidos de tipo egreso con método de pago PUE"]
[null,"  Consumo en restaurantes",null,null,null,"(-) CFDI recibidos de tipo egreso con métoso de pago PPD"]
[null,"  Contribuciones pagadas, excepto ISR, Impuesto local por remuneración de salarios; así como IVA e IEPS (cuando tiene derecho a acreditarlos)",null,null,null,"(-) CFDI recibidos de tipo egreso por aplicación de anticipo"]
[null,"  Deducciones de las personas morales residentes en el extranjero",null,null,null,"(+) CFDI emitidos de tipo egreso con método de pago PUE"]
[null,"  Donativos no onerosos ni remunerativos",null,null,null,"(+) CFDI emitidos de tipo egreso con método de pago PPD"]
[null,"  Fletes y acarreos",null,null,null,"(=) Total"]
[null,"  Gastos en general"]
[null,"  Gastos por partidas discontinuas y extraordinarias"]
[null,"  Gastos realizados en el ejercicio por proyectos de inversión y desarrollo tecnológico",null,null,null,"(+) CFDI recibidos con complemento de pago"]
[null,"  Honorarios pagados a extranjeros"]
[null,"  IEPS trasladado o pagado (cuando no tenga derecho a acreditarlo)",null,null,null,"CFDI emitidos de tipo ingreso con descuento"]
[null,"  Intereses de préstamos invertidos en los fines del negocio",null,null,null,"Enero"]
[null,"  Intereses moratorios",null,null,null,"Febrero"]
[null,"  IVA trasladado o pagado (cuando no tenga derecho a acreditarlo)",null,null,null,"Marzo"]
[null,"  Los intereses devengados a cargo en el ejercicio sin ajuste alguno",null,null,null,"Abril"]
[null,"  Pagos de honorarios o gratificaciones a administradores, comisarios, directores, gerentes generales o miembros del consejo directivo, de vigilancia, consultivos o de cualquier otra índole.",null,null,null,"Mayo"]
[null,"   Pagos efectuados a comisionistas y mediadores residentes en el extranjero",null,null,null,"Junio"]
[null,"  Pérdida cambiaria",null,null,null,"Julio"]
[null,"  Perdida fiscal en enajenación de acciones",null,null,null,"Agosto"]
[null,"  Perdida fiscal en enajenación de terrenos y activo fijo",null,null,null,"Septiembre"]
[null,"  Pérdida por operaciones financieras derivadas",null,null,null,"Octubre"]
[null,"  Pérdidas por caso fortuito o fuerza mayor",null,null,null,"Noviembre"]
[null,"  Pérdidas por créditos incobrables",null,null,null,"Diciembre"]
[null,"  Primas por seguros o fianzas"]
[null,"  Uso de automóviles eléctricos, híbridos o accionados por hidrógeno"]
[null,"  Uso o goce temporal de automóviles de combustión interna"]
[null,"  Uso o gocé temporal de bienes pagados a extranjeros"]
[null,"  Pérdida fiscal en enajenación de bienes adjudicados"]
[null,"  Pérdida fiscal por enajenación o cesión de cartera"]
[null,"  Castigos"]
[null,"  Condonaciones, bonificaciones y descuentos sobre cartera"]
[null,"  Pérdida por operaciones derivadas referidas a tipo de cambio"]
[null,"  Aportaciones al IPAB"]
[null,"  Comisiones a agentes"]
[null,"  Compensaciones adicionales a agentes"]
[null,"  Comisiones por reaseguro y reafianzamiento tomado"]
[null,"  Primas cedidas"]
[null,"  Artículos y enseres de limpieza"]
[null,"  Propaganda y publicidad"]
[null,"  Papelería y útiles"]
[null,"  Gastos de mantenimiento"]
[null,"  Pagos personas físicas exentas del ISR que se dediquen exclusivamente a las actividades agrícolas, ganaderas, silvícolas o pesqueras"]
[null,"  Costo de los libros, periódicos y revistas"]
[null,"  Gastos realizados en el pago de servicios por el uso de infraestructura carretera"]
[null,"  Gastos realizados en el ejercicio por proyectos de inversión y desarrollo tecnológico"]
[null,"  Pago de peaje para Transporte Público de personas"]
[null,"  Pago de peaje para Transporte Público de carga"]
[null,"  Pago de peaje para Transporte Público de Turístico"]
[null,"  Pago de peaje para Transporte Privada de Personas"]
[null,"  Pago de peaje para Transporte Privada de Carga"]
[null,"  Pago de peaje para Transporte Privado Turístico"]
[null,"  Pago del derecho especial sobre minería"]
[null,"  Capacitación técnica o científica vinculada con la actividad (Decreto Relocalización)"]
[]
[]
[]
[null,"DEDUCCIONES RELACIONADAS CON LA NÓMINA",{"$f":"SUM(C85:C95)","v":0}]
[null,"Sin gastos relacionados con la nómina"]
[null,"Aportaciones efectuadas en los términos de la Ley del INFONAVIT"]
[null,"Aportaciones efectuadas en los términos de la Ley del SAR"]
[null,"Aportaciones efectuadas para la creación o incremento de reservas para fondos de pensiones o jubilaciones del personal"]
[null,"Aportaciones para jubilación y vejez"]
[null,"Cuotas del seguro por desempleo"]
[null,"Cuotas pagadas por los patrones al Instituto Mexicano del Seguro Social"]
[null,"Impuestos locales por concepto de remuneración de salarios"]
[null,"Las provisiones para la creación o el incremento de reservas complementarias relacionadas con las gratificaciones a los trabajadores  correspondientes al ejercicio"]
[null,"Otros conceptos"]
[null,"Remuneraciones a empleados o a terceros, que estén condicionadas al cobro de los abonos en las enajenaciones a plazos o en los contratos de arrendamiento financiero"]
[]
[null,"DEDUCCIÓN DE INVERSIONES",{"$f":"SUM(C98:C114)","v":0}]
[null,"Cargos y gastos diferidos (NO SELECCIONAR)"]
[null,null,"Monto de la inversión","Gastos relacionados","MOI","Deducción actualizada"]
[null,"Cargos y gastos diferidos",{"$f":"SUM(C101:C104)","v":0},{"$f":"SUM(D101:D104)","v":0},0,0]
[null,"Cargos diferidos"]
[null,"Erogaciones realizadas en periodos preoperativos"]
[null,"Regalías, asistencia técnica, otor gastos diferidos"]
[null,"Activos intangibles"]
[null,"Construcciones (NO SELECCIONAR)"]
[null,null,"Monto de la inversión","Gastos relacionados","MOI","Deducción actualizada"]
[null,"Construcciones",{"$f":"SUM(C108:C109)","v":0},{"$f":"SUM(D108:D109)","v":0},0,0]
[null,"Inmuebles declarados como monumentos arqueológicos, artísticos, históricos o patrimoniales"]
[null,"Instalaciones, adiciones, reparaciones, mejoras, adaptaciones en un lote minero"]
[null,"Ferrocarriles (NO SELECCIONAR)"]
[null,null,"Monto de la inversión","Gastos relacionados","MOI","Deducción actualizada"]
[null,"Ferrocarriles",{"$f":"SUM(C113:C117)","v":0},{"$f":"SUM(D113:D117)","v":0},0,0]
[null,"Bombas de suministro de combustible a trenes"]
[null,"Vías férreas"]
[null,"Carros de ferrocarril, locomotoras, armones y autoarmones"]
[null,"Maquinaria niveladora de vías, desclavados, esmeriles para vías, gastos de motor para levantar la vía, removedora, insertadora y taladradora de durmientes"]
[null,"Equipo de comunicación, señalización y telemando"]
[null,"Mobiliario y equipo de oficina (NO SELECCIONAR)"]
[null,null,"Monto de la inversión","Gastos relacionados","MOI","Deducción actualizada"]
[null,"Mobiliario y equipo de oficina",{"$f":"SUM(C121)","v":0},{"$f":"SUM(D121)","v":0},0,0]
[null,"Mobiliario y equipo de oficina  "]
[null,"Embarcaciones (NO SELECCIONAR)"]
[null,null,"Monto de la inversión","Gastos relacionados","MOI","Deducción actualizada"]
[null,"Embarcaciones",{"$f":"SUM(C125)","v":0},{"$f":"SUM(D125)","v":0},{"$f":"SUM(E125)","v":0},{"$f":"SUM(F125)","v":0}]
[null,"Embarcaciones"]
[null,"Aviones (NO SELECCIONAR)"]
[null,null,"Monto de la inversión","Gastos relacionados","MOI","Deducción actualizada"]
[null,"Aviones",{"$f":"SUM(C129:C131)","v":0},{"$f":"SUM(D129:D131)","v":0},0,0]
[null,"Dedicados a la aerofumigación agrícola"]
[null,"Para los demás"]
[null,"Dedicados a la aerofumigación agrícola, cuando se enajenen, se pierden o dejen de ser útiles"]
[null,"Automóviles (NO SELECCIONAR)"]
[null,null,"Monto de la inversión","Gastos relacionados","MOI","Deducción actualizada"]
[null,"Automóviles",{"$f":"SUM(C135:C136)","v":0},{"$f":"SUM(D135:D136)","v":0},0,0]
[null,"Automóviles, autobuses, camiones de carga, tractocamiones, montacargas y remolques"]
[null,"Automóviles, autobuses, camiones de carga, tractocamiones, montacargas y remolques, cuando se enajenen, se pierden o dejen de ser útiles"]
[null,"Computadoras (NO SELECCIONAR)"]
[null,null,"Monto de la inversión","Gastos relacionados","MOI","Deducción actualizada"]
[null,"Computadoras",{"$f":"SUM(C140:C141)","v":0},{"$f":"SUM(D140:D141)","v":0},0,0]
[null,"Computadoras personales de escritorio y portátiles; servidores; impresoras, lectore ópticos, graficadores, lectores de código de barras, digitalizadores, unidades de almacenamiento externo y concentradores de redes de cómputo"]
[null,"Computadoras personales de escritorio y portátiles; servidores; impresoras, lectore ópticos, graficadores, lectores de código de barras, digitalizadores, unidades de almacenamiento externo y concentradores de redes de cómputo, cuando se enajenen, se pierden o dejen de ser útiles"]
[null,"Dados troqueles moldes matrices y herramental"]
[null,null,"Monto de la inversión","Gastos relacionados","MOI","Deducción actualizada"]
[null,"Dados troqueles moldes matrices y herramental",{"$f":"SUM(C145:C146)","v":0},{"$f":"SUM(D145:D146)","v":0},{"$f":"SUM(E145:E146)","v":0},{"$f":"SUM(F145:F146)","v":0}]
[null,"Dados, troqueles, moldes, matrices y herramental"]
[null,"Dados, troqueles, moldes, matrices y herramental, cuando se enajenen, se pierden o dejen de ser útiles"]
[null,"Semovientes y vegetales (NO SELECCIONAR)"]
[null,null,"Monto de la inversión","Gastos relacionados","MOI","Deducción actualizada"]
[null,"Semovientes y vegetales",{"$f":"SUM(C150)","v":0},{"$f":"SUM(D150)","v":0},0,0]
[null,"Semovientes y vegetales  "]
[null,"Comunicaciones telefónicas (NO SELECCIONAR)"]
[null,null,"Monto de la inversión","Gastos relacionados","MOI","Deducción actualizada"]
[null,"Comunicaciones telefónicas",{"$f":"SUM(C154:C158)","v":0},{"$f":"SUM(D154:D158)","v":0},0,0]
[null,"Torres de transmisión y cables, excepto los de fibra óptica"]
[null,"Sistemas de radio, equipo de transmisión, radiotransmisión de microonda digital o analógica, torres de microondas y guías de onda"]
[null,"Equipo utilizado en la transmisión como circuitos de la planta interna que no forman parte de la conmutación"]
[null,"Equipo de la central telefónica destinado a la conmutación de llamadas de tecnología destina a la electromecánica"]
[null,"Para los demás"]
[null,"Comunicaciones satelitales (NO SELECCIONAR)"]
[null,null,"Monto de la inversión","Gastos relacionados","MOI","Deducción actualizada"]
[null,"Comunicaciones satelitales",{"$f":"SUM(C162:C163)","v":0},{"$f":"SUM(D162:D163)","v":0},0,0]
[null,"Segmento satelital en el espacio, incluyendo el cuerpo principal del satélite, los transpondedores, las antenas para la transmisión y recepción de comunicaciones digitales y análogas y el equipo"]
[null,"Equipo satelital en tierra, incluyendo las antenas para la transmisión y recepción de comunicaciones digitales y análogas y el equipo para el monitoreo del satélite"]
[null,"Adaptaciones que se realicen a instalaciones al activo fijo"]
[null,null,"Monto de la inversión","Gastos relacionados","MOI","Deducción actualizada"]
[null,"Adaptaciones que se realicen a instalaciones al activo fijo",{"$f":"SUM(C167)","v":0},{"$f":"SUM(D167)","v":0},0,0]
[null,"Adaptaciones a instalaciones al cativo fijo para personas con discapacidad"]
[null,"Maquinaria y equipo para la generación de energía"]
[null,null,"Monto de la inversión","Gastos relacionados","MOI","Deducción actualizada"]
[null,"Maquinaria y equipo para la generación de energía",{"$f":"SUM(C171)","v":0},{"$f":"SUM(D171)","v":0},{"$f":"SUM(E171)","v":0},{"$f":"SUM(F171)","v":0}]
[null,"Maquinaria y equipo para la generación de energía proveniente de fuentes renovables o de sistemas de cogeneración de electricidad eficiente"]
[null,"BicicletasIONAR)"]
[null,null,"Monto de la inversión","Gastos relacionados","MOI","Deducción actualizada"]
[null,"BicicletasIONAR)",{"$f":"SUM(C175)","v":0},{"$f":"SUM(D175)","v":0},{"$f":"SUM(E175)","v":0},{"$f":"SUM(F175)","v":0}]
[null,"Bicicletas convencionales, bicicletas y motocicletas cuya propulsión sea a través de baterías eléctricas recargables"]
[null,"Derecho de usufructo"]
[null,null,"Monto de la inversión","Gastos relacionados","MOI","Deducción actualizada"]
[null,null,{"$f":"SUM(C179)","v":0},{"$f":"SUM(D179)","v":0},{"$f":"SUM(E179)","v":0},{"$f":"SUM(F179)","v":0}]
[null,"Derecho de usufructo constituido sobre un bien inmueble"]
[null,"Maquinaria y equipo"]
[null,null,"Monto de la inversión","Gastos relacionados","MOI","Deducción actualizada"]
[null,"Maquinaria y equipo",{"$f":"SUM(C183:C229)","v":0},{"$f":"SUM(D183:D229)","v":0},0,0]
[null,"Generación, conducción, transformación y distribución de electricidad; en la molienda de granos; en la producción de azúcar y sus derivados; en la fabricación de aceites comestibles; en el transporte marítimo, fluvial y lacustre"]
[null,"Producción de metal obtenido en primer proceso; en la fabricación de productos de tabaco y derivados del carbón natural"]
[null,"Fabricación de pulpa, papel y productos similares"]
[null,"Fabricación de vehículos de motos y sus partes, construcción de ferrocarriles y navíos, fabricación de productos de metal, maquinaría y de instrumentos profesionales y científicos, elaboración de productos alimentación de bebidas, excepto granos, azúcar, aceites comestibles y derivados"]
[null,"Curtido de piel y la fabricación de artículos de piel, elaboración de productos químicos, petroquímicos y farmacobiológicos, fabricación de productos de caucho y de plástico; en la impresión y publicación gráfica"]
[null,"Transporte eléctrico; en la infraestructura fija para el transporte, almacenamiento y procesamiento de hidrocarburos, en plataformas y embarcaciones de perforación de pozos y embarcaciones de procesamiento y almacenamiento de hidrocarburos"]
[null,"Inversiones en equipos fijos de alimentación para vehículos eléctricos, públicos"]
[null,"Inversiones en equipos fijos de alimentación para vehículos eléctricos, no públicos"]
[null,"Fabricación, acabado, teñido y estampado de productos textiles, así como de prendas para el vestido"]
[null,"Industria minera; en la construcción de aeronaves y en el transporte terrestre de carga y pasajeros"]
[null,"Transporte aéreo. Transmisión de los servicios de comunicación proporcionados por telégrafos y por las estaciones de radio y televisión"]
[null,"Restaurantes"]
[null,"Industria de la construcción actividades de agricultura, ganadería , silvicultura y pesca"]
[null,"Manufactura, ensamble y transformación de componentes magnéticos para discos duros y tarjetas electrónicas para la industria de la computación"]
[null,"Otras actividades no especificadas"]
[null,"Destinados directamente a la investigación de nuevos productos o desarrollo de tecnología en el país"]
[null,"Destinados directamente a la investigación de nuevos productos o desarrollo de tecnología en el país, cuando se enajenen, se pierden o dejen de ser útiles"]
[null,"Construcción de instalaciones para el diseño, fabricación, manufactura, ensamble, realización de pruebas empaquetado avanzado o investigación destinados a los semiconductores"]
[null,"Construcción de instalaciones para el diseño, fabricación, manufactura, ensamble, realización de pruebas empaquetado avanzado o investigación destinados a los semiconductores, cuando se enajenen, se pierden o dejen de ser útiles"]
[null,"Fabricación de medicamentos farmacéuticos, productos antisépticos de uso farmacéutico, sustancias para diagnóstico, de tabletas, cápsulas o soluciones farmacéuticas y activos inyectables."]
[null,"Fabricación de medicamentos farmacéuticos, productos antisépticos de uso farmacéutico, sustancias para diagnóstico, de tabletas, cápsulas o soluciones farmacéuticas y activos inyectables, cuando se enajenen, se pierden o dejen de ser útiles"]
[null,"Fabricación de microscopios electrónicos, de equipo médico electrónico, de instrumentos y equipo para laboratorio, equipo para análisis, ensayos y pruebas de laboratorio, equipo de diagnóstico y radioterapia, marcapasos o de audífonos para sordera y otros aparatos de implante."]
[null,"Fabricación de microscopios electrónicos, de equipo médico electrónico, de instrumentos y equipo para laboratorio, equipo para análisis, ensayos y pruebas de laboratorio, equipo de diagnóstico y radioterapia, marcapasos o de audífonos para sordera y otros aparatos de implante, cuando se enajenen, se pierden o dejen de ser útiles"]
[null,"Manufactura de productos químicos o en la manufactura de materiales utilizados en la fabricación, manufactura, ensamble, realización de pruebas y embalaje de componentes electrónicos y semiconductores."]
[null,"Manufactura de productos químicos o en la manufactura de materiales utilizados en la fabricación, manufactura, ensamble, realización de pruebas y embalaje de componentes electrónicos y semiconductores, cuando se enajenen, se pierden o dejen de ser útiles."]
[null,"Fabricación de maquinaria y equipo dedicado al diseño, fabricación, manufactura, ensamble, realización de pruebas y embalaje de componentes electrónicos y semiconductores."]
[null,"Fabricación de maquinaria y equipo dedicado al diseño, fabricación, manufactura, ensamble, realización de pruebas y embalaje de componentes electrónicos y semiconductores, cuando se enajenen, se pierden o dejen de ser útiles."]
[null,"Diseño, fabricación, manufactura, ensamble, realización de pruebas y embalaje de componentes electrónicos, como tarjetas, simples o cargadas, circuitos, capacitadores, condensadores, resistores, conectores y semiconductores, bobinas, transformadores, módem para computadora y teléfono, y arneses."]
[null,"Diseño, fabricación, manufactura, ensamble, realización de pruebas y embalaje de componentes electrónicos, como tarjetas, simples o cargadas, circuitos, capacitadores, condensadores, resistores, conectores y semiconductores, bobinas, transformadores, módem para computadora y teléfono, y arneses, cuando se enajenen, se pierden o dejen de ser útiles."]
[null,"Construcción y montaje de sets en foros y locaciones para grabaciones y fotografía"]
[null,"Construcción y montaje de sets en foros y locaciones para grabaciones y fotografía, cuando se enajenen, se pierden o dejen de ser útiles."]
[null,"Equipos e instalaciones de postproducción de audio y video y efectos visuales, equipo de cómputo para animación y post producción de audio y video, equipo para la elaboración de vestuario para utilería y equipos especiales de ambientación."]
[null,"Equipos e instalaciones de postproducción de audio y video y efectos visuales, equipo de cómputo para animación y post producción de audio y video, equipo para la elaboración de vestuario para utilería y equipos especiales de ambientación, cuando se enajenen, se pierden o dejen de ser útiles."]
[null,"Manufactura, ensamble y transformación de componentes magnéticos para discos duros y tarjetas electrónicas sustratos, tecnologías de empaquetado de semiconductores, insumos mecánicos (plástico o metal), placas de circuito impreso, tarjetas gráficas, unidades de estado sólido, montaje de polacas de circuito impreso, fuentes de alimentación/adaptadores, baterías para equipos electrónicos y pantallas de cristal liquido para la industria de la computación."]
[null,"Manufactura, ensamble y transformación de componentes magnéticos para discos duros y tarjetas electrónicas sustratos, tecnologías de empaquetado de semiconductores, insumos mecánicos (plástico o metal), placas de circuito impreso, tarjetas gráficas, unidades de estado sólido, montaje de polacas de circuito impreso, fuentes de alimentación/adaptadores, baterías para equipos electrónicos y pantallas de cristal liquido para la industria de la computación, cuando se enajenen, se pierden o dejen de ser útiles."]
[null,"Equipo de grabación visual o sonora en cualquier forma, equipo de iluminación profesional para grabaciones y fotografías."]
[null,"Equipo de grabación visual o sonora en cualquier forma, equipo de iluminación profesional para grabaciones y fotografías, cuando se enajenen, se pierden o dejen de ser útiles."]
[null,"Manufactura, ensamble y transformación de baterías para automóviles, camionetas, camiones, trenes, barcos y aeronaves, siempre que todos estos vehículos sean eléctricos."]
[null,"Manufactura, ensamble y transformación de baterías para automóviles, camionetas, camiones, trenes, barcos y aeronaves, siempre que todos estos vehículos sean eléctricos, cuando se enajenen, se pierden o dejen de ser útiles."]
[null,"Fabricación de automóviles, camionetas, camiones, trenes, barcos y aeronaves, cuya propulsión sea a través de baterías eléctricas recargables, motor eléctrico que además cuenten con motor de combustión eléctrica o con motor accionado por hidrógeno."]
[null,"Fabricación de automóviles, camionetas, camiones, trenes, barcos y aeronaves, cuya propulsión sea a través de baterías eléctricas recargables, motor eléctrico que además cuenten con motor de combustión eléctrica o con motor accionado por hidrógeno, cuando se enajenen, se pierden o dejen de ser útiles."]
[null,"Fabricación de motores de gasolina, híbridos y de combustibles alternativos para automóviles, camionetas y camiones."]
[null,"Fabricación de motores de gasolina, híbridos y de combustibles alternativos para automóviles, camionetas y camiones, cuando se enajenen, se pierden o dejen de ser útiles."]
[null,"Fabricación de equipo eléctrico y electrónico, sistemas de dirección, suspensión y frenos, sistemas de transmisión, asientos y accesorios interiores, y piezas metálicas troqueladas, para automóviles, camionetas, camiones, trenes, barco y aeronaves."]
[null,"Fabricación de equipo eléctrico y electrónico, sistemas de dirección, suspensión y frenos, sistemas de transmisión, asientos y accesorios interiores, y piezas metálicas troqueladas, para automóviles, camionetas, camiones, trenes, barco y aeronaves, cuando se enajenen, se pierden o dejen de ser útiles."]
[null,"Producción de productos destinados a la alimentación humana y animal, a que se refiere la fracción I, del Artículo Primero de este decreto, así como las líneas de producción de alimento, calderas y depósitos de agua."]
[null,"Producción de productos destinados a la alimentación humana y animal, a que se refiere la fracción I, del Artículo Primero de este decreto, así como las líneas de producción de alimento, calderas y depósitos de agua, cuando se enajenen, se pierden o dejen de ser útiles."]
[]
[]
[]
[]
[]
[null,"COSTO DE LO VENDIDO"]
[]
[null,"AJUSTE ANUAL POR INFLACIÓN DEDUCIBLE"]
[]
[null,"FACILIDADES ADMINISTRATIVAS Y ESTÍMULOS DEDUCIBLES",{"$f":"SUM(C240:C245)","v":0}]
[null,"Contratar adultos mayores (25% del salario pagado)"]
[null,"Deducción del 25% del salario pagado por la contratación de personas que padezcan alguna discapacidad"]
[null,"Deducción acional por pago de servicios personales en la operación de maquila"]
[null,"Deducción adicional por enaujenación de libros, periódicos y revistas"]
[null,"Deducción del costo de adquisición de terrenos por contribuyentes dedicados a la construcción y desarrolos inmobiliarios"]
[null,"Deducción adicional de gastos de capacitación (25% del incremento en el gasto efectivamente erogado -Decreto Relocalización.)"]
[]
[null,"Total de deducciones autorizadas",{"$f":"IFERROR(C6+C19+C84+C97+C235+C237+C239,0)","v":0}]
[]
[]
[]
[]
[null,"Persona moral RESICO"]
[]
[null,"Ejercicio",2025]
[]
[null,"SUELDOS, SALARIOS Y ASIMILADOS",{"$f":"IFERROR(ROUND(C262+C266,0),0)","v":0}]
[null,null,null,"Exento","Gravado"]
[null,"Nómina por sueldos y salarios",null,0,0]
[null,"(-) Ajuste a gravados y exentos",null,0,0]
[null,"(x) Factor de no deducibles",null,0.53]
[null,"(=) Nómina no deducible",null,0]
[null,"Nómina por sueldos y salarios deducibles",0]
[null,"Asimilados a salarios",null,0,0]
[null,"(-) Ajuste a asimilados a salarios",null,null,0]
[null,"(-) Asimilados a salarios no deducibles"]
[null,"(=) Asimilados a salarios deducibles",0]
[]
[null,"COMPRAS Y GASTOS",{"$f":"IFERROR(ROUND(SUM(C269:C313),0),0)","v":0}]
[null,"  Viáticos y gastos de viaje",null,null,null,"Datos de los CFDI recibidos (dato informativo que no pertenece a la declaración)"]
[null,"  Honorarios pagados a personas físicas/RESICO",null,null,null,"CFDI recibidos de tipo ingreso con método de pago PUE"]
[null,"  Uso o goce temporal de bienes pagados a personas físicas",null,null,null,"(-) CFDI recibidos de tipo egreso con métoso de pago PUE"]
[null,"  Devoluciones, descuentos y bonificaciones",null,null,null,"(-) CFDI recibidos de tipo egreso por aplicación de anticipo"]
[null,"  Adquisición de combustibles",null,null,null,"(+) CFDI emitidos de tipo egreso con método de pago PUE"]
[null,"  Adquisición de mercancías, productos semiterminados y terminados",null,null,null,"(+) CFDI recibidos con complemento de pago"]
[null,"  Asistencia técnica se concrete en el mismo ejercicio",null,null,null,"(=) Total",null,494414.52250600007]
[null,"  8.5% Consumos en restaurante"]
[null,"  Cuotas del seguro por desempleo"]
[null,"  Devolución de anticipos"]
[null,"  Impuestos locales por conceptos de remuneración de salarios"]
[null,"  Indemnizaciones por daños y perjuicios y las penas convencionales"]
[null,"  IVA y IEPS no acreditable"]
[null,"  Los pagos por el uso o goce temporal de aviones y embarcaciones"]
[null,"  Mercancías de importación"]
[null,"  Obsequios, atenciones y otros gastos de naturaleza análoga ofrecidos a los clientes en forma general"]
[null,"  Los pagos por el uso o goce temporal de casas habitación"]
[null,"  Los pagos realizados a comisionistas o mediadores realizados a residente en el extranjero"]
[null,"  Pérdida proporcional en la enajenación de aviones en la que se haya deducido el MOI"]
[null,"  Primas por seguros o fianzas"]
[null,"  Recargos pagados efectivamente"]
[null,"  Regalías que se concrete en el mismo ejercicio"]
[null,"  Remuneraciones a empleados o a terceros, condicionadas al cobro de los abonos en las enajenaciones a plazos o en los contratos de arrendamiento financiero"]
[null,"  Uso o goce temporal de automóviles utilizados para la actividad"]
[null,"  Intereses pagados"]
[null,"  Cuotas a cargo de los patrones pagadas al IMSS (SAR, INFONAVIT, etc.)"]
[null,"  Aportaciones efectuadas para la creación o incremento de reservas para fondos de pensión o jubilación del personal"]
[null,"  Costo de los libros, periódicos y revistas"]
[null,"  Gastos realizados en el pago de servicios por el uso de infraestructura carretera"]
[null,"  Gastos realizados en el ejercicio por proyectos de inversión y desarrollo tecnológico"]
[null,"  Pago de peaje para Transporte Público de personas"]
[null,"  Pago de peaje para Transporte Público de carga"]
[null,"  Pago de peaje para Transporte Público de Turístico"]
[null,"  Pago de peaje para Transporte Privada de Personas"]
[null,"  Pago de peaje para Transporte Privada de Carga"]
[null,"  Pago de peaje para Transporte Privado Turístico"]
[null,"  Pago del derecho especial sobre minería"]
[null,"  Artículos y enseres de limpieza"]
[null,"  Propaganda y publicidad"]
[null,"  Papelería y útiles"]
[null,"  Gastos de mantenimiento menores"]
[null,"  Pagos personas físicas exentas del ISR que se dediquen exclusivamente a las actividades agrícolas, ganaderas, silvícolas o pesqueras"]
[null,"  Fletes y acarreos"]
[null,"  Gastos en general"]
[null,"  Capacitación técnica o cientifica vinculada con la actividad (Decreto Relocalización)"]
[]
[null,"DEDUCCIÓN DE INVERSIONES",{"$f":"SUM(C316:C332)","v":0}]
[null,"Cargos y gastos diferidos (NO SELECCIONAR)"]
[null,null,"Monto de la inversión","Gastos relacionados","MOI","Deducción actualizada"]
[null,"Cargos y gastos diferidos",{"$f":"SUM(C319:C322)","v":0},{"$f":"SUM(D319:D322)","v":0},0,0]
[null,"Cargos diferidos"]
[null,"Erogaciones realizadas en periodos preoperativos"]
[null,"Regalías, asistencia técnica, otor gastos diferidos"]
[null,"Activos intangibles"]
[null,"Construcciones (NO SELECCIONAR)"]
[null,null,"Monto de la inversión","Gastos relacionados","MOI","Deducción actualizada"]
[null,"Construcciones",{"$f":"SUM(C326:C327)","v":0},{"$f":"SUM(D326:D327)","v":0},0,0]
[null,"Inmuebles declarados como monumentos arqueológicos, artísticos, históricos o patrimoniales"]
[null,"Instalaciones, adiciones, reparaciones, mejoras, adaptaciones en un lote minero"]
[null,"Ferrocarriles (NO SELECCIONAR)"]
[null,null,"Monto de la inversión","Gastos relacionados","MOI","Deducción actualizada"]
[null,"Ferrocarriles",{"$f":"SUM(C331:C335)","v":0},{"$f":"SUM(D331:D335)","v":0},0,0]
[null,"Bombas de suministro de combustible a trenes"]
[null,"Vías férreas"]
[null,"Carros de ferrocarril, locomotoras, armones y autoarmones"]
[null,"Maquinaria niveladora de vías, desclavados, esmeriles para vías, gastos de motor para levantar la vía, removedora, insertadora y taladradora de durmientes"]
[null,"Equipo de comunicación, señalización y telemando"]
[null,"Mobiliario y equipo de oficina (NO SELECCIONAR)"]
[null,null,"Monto de la inversión","Gastos relacionados","MOI","Deducción actualizada"]
[null,"Mobiliario y equipo de oficina",{"$f":"SUM(C339)","v":0},{"$f":"SUM(D339)","v":0},0,0]
[null,"Mobiliario y equipo de oficina  "]
[null,"Embarcaciones (NO SELECCIONAR)"]
[null,null,"Monto de la inversión","Gastos relacionados","MOI","Deducción actualizada"]
[null,"Embarcaciones",{"$f":"SUM(C343)","v":0},{"$f":"SUM(D343)","v":0},0,0]
[null,"Embarcaciones"]
[null,"Aviones (NO SELECCIONAR)"]
[null,null,"Monto de la inversión","Gastos relacionados","MOI","Deducción actualizada"]
[null,"Aviones",{"$f":"SUM(C347:C349)","v":0},{"$f":"SUM(D347:D349)","v":0},0,0]
[null,"Dedicados a la aerofumigación agrícola"]
[null,"Para los demás"]
[null,"Dedicados a la aerofumigación agrícola, cuando se enajenen, se pierden o dejen de ser útiles"]
[null,"Automóviles (NO SELECCIONAR)"]
[null,null,"Monto de la inversión","Gastos relacionados","MOI","Deducción actualizada"]
[null,"Automóviles",{"$f":"SUM(C353:C354)","v":0},{"$f":"SUM(D353:D354)","v":0},0,0]
[null,"Automóviles, autobuses, camiones de carga, tractocamiones, montacargas y remolques"]
[null,"Automóviles, autobuses, camiones de carga, tractocamiones, montacargas y remolques, cuando se enajenen, se pierden o dejen de ser útiles"]
[null,"Computadoras (NO SELECCIONAR)"]
[null,null,"Monto de la inversión","Gastos relacionados","MOI","Deducción actualizada"]
[null,"Computadoras",{"$f":"SUM(C358:C359)","v":0},{"$f":"SUM(D358:D359)","v":0},0,0]
[null,"Computadoras personales de escritorio y portátiles; servidores; impresoras, lectore ópticos, graficadores, lectores de código de barras, digitalizadores, unidades de almacenamiento externo y concentradores de redes de cómputo"]
[null,"Computadoras personales de escritorio y portátiles; servidores; impresoras, lectore ópticos, graficadores, lectores de código de barras, digitalizadores, unidades de almacenamiento externo y concentradores de redes de cómputo, cuando se enajenen, se pierden o dejen de ser útiles"]
[null,"Dados troqueles moldes matrices y herramental"]
[null,null,"Monto de la inversión","Gastos relacionados","MOI","Deducción actualizada"]
[null,"Dados troqueles moldes matrices y herramental",{"$f":"SUM(C363:C364)","v":0},{"$f":"SUM(D363:D364)","v":0},0,0]
[null,"Dados, troqueles, moldes, matrices y herramental"]
[null,"Dados, troqueles, moldes, matrices y herramental, cuando se enajenen, se pierden o dejen de ser útiles"]
[null,"Semovientes y vegetales (NO SELECCIONAR)"]
[null,null,"Monto de la inversión","Gastos relacionados","MOI","Deducción actualizada"]
[null,"Semovientes y vegetales",{"$f":"SUM(C368)","v":0},{"$f":"SUM(D368)","v":0},0,0]
[null,"Semovientes y vegetales  "]
[null,"Comunicaciones telefónicas (NO SELECCIONAR)"]
[null,null,"Monto de la inversión","Gastos relacionados","MOI","Deducción actualizada"]
[null,"Comunicaciones telefónicas",{"$f":"SUM(C372:C376)","v":0},{"$f":"SUM(D372:D376)","v":0},0,0]
[null,"Torres de transmisión y cables, excepto los de fibra óptica"]
[null,"Sistemas de radio, equipo de transmisión, radiotransmisión de microonda digital o analógica, torres de microondas y guías de onda"]
[null,"Equipo utilizado en la transmisión como circuitos de la planta interna que no forman parte de la conmutación"]
[null,"Equipo de la central telefónica destinado a la conmutación de llamadas de tecnología destina a la electromecánica"]
[null,"Para los demás"]
[null,"Comunicaciones satelitales (NO SELECCIONAR)"]
[null,null,"Monto de la inversión","Gastos relacionados","MOI","Deducción actualizada"]
[null,"Comunicaciones satelitales",{"$f":"SUM(C380:C381)","v":0},{"$f":"SUM(D380:D381)","v":0},0,0]
[null,"Segmento satelital en el espacio, incluyendo el cuerpo principal del satélite, los transpondedores, las antenas para la transmisión y recepción de comunicaciones digitales y análogas y el equipo"]
[null,"Equipo satelital en tierra, incluyendo las antenas para la transmisión y recepción de comunicaciones digitales y análogas y el equipo para el monitoreo del satélite"]
[null,"Adaptaciones que se realicen a instalaciones al activo fijo"]
[null,null,"Monto de la inversión","Gastos relacionados","MOI","Deducción actualizada"]
[null,"Adaptaciones que se realicen a instalaciones al activo fijo",{"$f":"SUM(C385)","v":0},{"$f":"SUM(D385)","v":0},0,0]
[null,"Adaptaciones a instalaciones al cativo fijo para personas con discapacidad"]
[null,"Maquinaria y equipo para la generación de energía"]
[null,null,"Monto de la inversión","Gastos relacionados","MOI","Deducción actualizada"]
[null,"Maquinaria y equipo para la generación de energía",{"$f":"SUM(C389)","v":0},{"$f":"SUM(D389)","v":0},0,0]
[null,"Maquinaria y equipo para la generación de energía proveniente de fuentes renovables o de sistemas de cogeneración de electricidad eficiente"]
[null,"BicicletasIONAR)"]
[null,null,"Monto de la inversión","Gastos relacionados","MOI","Deducción actualizada"]
[null,"BicicletasIONAR)",{"$f":"SUM(C393)","v":0},{"$f":"SUM(D393)","v":0},0,0]
[null,"Bicicletas convencionales, bicicletas y motocicletas cuya propulsión sea a través de baterías eléctricas recargables"]
[null,"Derecho de usufructo"]
[null,null,"Monto de la inversión","Gastos relacionados","MOI","Deducción actualizada"]
[null,null,{"$f":"SUM(C397)","v":0},{"$f":"SUM(D397)","v":0},0,0]
[null,"Derecho de usufructo constituido sobre un bien inmueble"]
[null,"Maquinaria y equipo"]
[null,null,"Monto de la inversión","Gastos relacionados","MOI","Deducción actualizada"]
[null,"Maquinaria y equipo",{"$f":"SUM(C401:C447)","v":0},{"$f":"SUM(D401:D447)","v":0},0,0]
[null,"Generación, conducción, transformación y distribución de electricidad; en la molienda de granos; en la producción de azúcar y sus derivados; en la fabricación de aceites comestibles; en el transporte marítimo, fluvial y lacustre"]
[null,"Producción de metal obtenido en primer proceso; en la fabricación de productos de tabaco y derivados del carbón natural"]
[null,"Fabricación de pulpa, papel y productos similares"]
[null,"Fabricación de vehículos de motos y sus partes, construcción de ferrocarriles y navíos, fabricación de productos de metal, maquinaría y de instrumentos profesionales y científicos, elaboración de productos alimentación de bebidas, excepto granos, azúcar, aceites comestibles y derivados"]
[null,"Curtido de piel y la fabricación de artículos de piel, elaboración de productos químicos, petroquímicos y farmacobiológicos, fabricación de productos de caucho y de plástico; en la impresión y publicación gráfica"]
[null,"Transporte eléctrico; en la infraestructura fija para el transporte, almacenamiento y procesamiento de hidrocarburos, en plataformas y embarcaciones de perforación de pozos y embarcaciones de procesamiento y almacenamiento de hidrocarburos"]
[null,"Inversiones en equipos fijos de alimentación para vehículos eléctricos, públicos"]
[null,"Inversiones en equipos fijos de alimentación para vehículos eléctricos, no públicos"]
[null,"Fabricación, acabado, teñido y estampado de productos textiles, así como de prendas para el vestido"]
[null,"Industria minera; en la construcción de aeronaves y en el transporte terrestre de carga y pasajeros"]
[null,"Transporte aéreo. Transmisión de los servicios de comunicación proporcionados por telégrafos y por las estaciones de radio y televisión"]
[null,"Restaurantes"]
[null,"Industria de la construcción actividades de agricultura, ganadería , silvicultura y pesca"]
[null,"Manufactura, ensamble y transformación de componentes magnéticos para discos duros y tarjetas electrónicas para la industria de la computación"]
[null,"Otras actividades no especificadas"]
[null,"Destinados directamente a la investigación de nuevos productos o desarrollo de tecnología en el país"]
[null,"Destinados directamente a la investigación de nuevos productos o desarrollo de tecnología en el país, cuando se enajenen, se pierden o dejen de ser útiles"]
[null,"Construcción de instalaciones para el diseño, fabricación, manufactura, ensamble, realización de pruebas empaquetado avanzado o investigación destinados a los semiconductores"]
[null,"Construcción de instalaciones para el diseño, fabricación, manufactura, ensamble, realización de pruebas empaquetado avanzado o investigación destinados a los semiconductores, cuando se enajenen, se pierden o dejen de ser útiles"]
[null,"Fabricación de medicamentos farmacéuticos, productos antisépticos de uso farmacéutico, sustancias para diagnóstico, de tabletas, cápsulas o soluciones farmacéuticas y activos inyectables."]
[null,"Fabricación de medicamentos farmacéuticos, productos antisépticos de uso farmacéutico, sustancias para diagnóstico, de tabletas, cápsulas o soluciones farmacéuticas y activos inyectables, cuando se enajenen, se pierden o dejen de ser útiles"]
[null,"Fabricación de microscopios electrónicos, de equipo médico electrónico, de instrumentos y equipo para laboratorio, equipo para análisis, ensayos y pruebas de laboratorio, equipo de diagnóstico y radioterapia, marcapasos o de audífonos para sordera y otros aparatos de implante."]
[null,"Fabricación de microscopios electrónicos, de equipo médico electrónico, de instrumentos y equipo para laboratorio, equipo para análisis, ensayos y pruebas de laboratorio, equipo de diagnóstico y radioterapia, marcapasos o de audífonos para sordera y otros aparatos de implante, cuando se enajenen, se pierden o dejen de ser útiles"]
[null,"Manufactura de productos químicos o en la manufactura de materiales utilizados en la fabricación, manufactura, ensamble, realización de pruebas y embalaje de componentes electrónicos y semiconductores."]
[null,"Manufactura de productos químicos o en la manufactura de materiales utilizados en la fabricación, manufactura, ensamble, realización de pruebas y embalaje de componentes electrónicos y semiconductores, cuando se enajenen, se pierden o dejen de ser útiles."]
[null,"Fabricación de maquinaria y equipo dedicado al diseño, fabricación, manufactura, ensamble, realización de pruebas y embalaje de componentes electrónicos y semiconductores."]
[null,"Fabricación de maquinaria y equipo dedicado al diseño, fabricación, manufactura, ensamble, realización de pruebas y embalaje de componentes electrónicos y semiconductores, cuando se enajenen, se pierden o dejen de ser útiles."]
[null,"Diseño, fabricación, manufactura, ensamble, realización de pruebas y embalaje de componentes electrónicos, como tarjetas, simples o cargadas, circuitos, capacitadores, condensadores, resistores, conectores y semiconductores, bobinas, transformadores, módem para computadora y teléfono, y arneses."]
[null,"Diseño, fabricación, manufactura, ensamble, realización de pruebas y embalaje de componentes electrónicos, como tarjetas, simples o cargadas, circuitos, capacitadores, condensadores, resistores, conectores y semiconductores, bobinas, transformadores, módem para computadora y teléfono, y arneses, cuando se enajenen, se pierden o dejen de ser útiles."]
[null,"Construcción y montaje de sets en foros y locaciones para grabaciones y fotografía"]
[null,"Construcción y montaje de sets en foros y locaciones para grabaciones y fotografía, cuando se enajenen, se pierden o dejen de ser útiles."]
[null,"Equipos e instalaciones de postproducción de audio y video y efectos visuales, equipo de cómputo para animación y post producción de audio y video, equipo para la elaboración de vestuario para utilería y equipos especiales de ambientación."]
[null,"Equipos e instalaciones de postproducción de audio y video y efectos visuales, equipo de cómputo para animación y post producción de audio y video, equipo para la elaboración de vestuario para utilería y equipos especiales de ambientación, cuando se enajenen, se pierden o dejen de ser útiles."]
[null,"Manufactura, ensamble y transformación de componentes magnéticos para discos duros y tarjetas electrónicas sustratos, tecnologías de empaquetado de semiconductores, insumos mecánicos (plástico o metal), placas de circuito impreso, tarjetas gráficas, unidades de estado sólido, montaje de polacas de circuito impreso, fuentes de alimentación/adaptadores, baterías para equipos electrónicos y pantallas de cristal liquido para la industria de la computación."]
[null,"Manufactura, ensamble y transformación de componentes magnéticos para discos duros y tarjetas electrónicas sustratos, tecnologías de empaquetado de semiconductores, insumos mecánicos (plástico o metal), placas de circuito impreso, tarjetas gráficas, unidades de estado sólido, montaje de polacas de circuito impreso, fuentes de alimentación/adaptadores, baterías para equipos electrónicos y pantallas de cristal liquido para la industria de la computación, cuando se enajenen, se pierden o dejen de ser útiles."]
[null,"Equipo de grabación visual o sonora en cualquier forma, equipo de iluminación profesional para grabaciones y fotografías."]
[null,"Equipo de grabación visual o sonora en cualquier forma, equipo de iluminación profesional para grabaciones y fotografías, cuando se enajenen, se pierden o dejen de ser útiles."]
[null,"Manufactura, ensamble y transformación de baterías para automóviles, camionetas, camiones, trenes, barcos y aeronaves, siempre que todos estos vehículos sean eléctricos."]
[null,"Manufactura, ensamble y transformación de baterías para automóviles, camionetas, camiones, trenes, barcos y aeronaves, siempre que todos estos vehículos sean eléctricos, cuando se enajenen, se pierden o dejen de ser útiles."]
[null,"Fabricación de automóviles, camionetas, camiones, trenes, barcos y aeronaves, cuya propulsión sea a través de baterías eléctricas recargables, motor eléctrico que además cuenten con motor de combustión eléctrica o con motor accionado por hidrógeno."]
[null,"Fabricación de automóviles, camionetas, camiones, trenes, barcos y aeronaves, cuya propulsión sea a través de baterías eléctricas recargables, motor eléctrico que además cuenten con motor de combustión eléctrica o con motor accionado por hidrógeno, cuando se enajenen, se pierden o dejen de ser útiles."]
[null,"Fabricación de motores de gasolina, híbridos y de combustibles alternativos para automóviles, camionetas y camiones."]
[null,"Fabricación de motores de gasolina, híbridos y de combustibles alternativos para automóviles, camionetas y camiones, cuando se enajenen, se pierden o dejen de ser útiles."]
[null,"Fabricación de equipo eléctrico y electrónico, sistemas de dirección, suspensión y frenos, sistemas de transmisión, asientos y accesorios interiores, y piezas metálicas troqueladas, para automóviles, camionetas, camiones, trenes, barco y aeronaves."]
[null,"Fabricación de equipo eléctrico y electrónico, sistemas de dirección, suspensión y frenos, sistemas de transmisión, asientos y accesorios interiores, y piezas metálicas troqueladas, para automóviles, camionetas, camiones, trenes, barco y aeronaves, cuando se enajenen, se pierden o dejen de ser útiles."]
[null,"Producción de productos destinados a la alimentación humana y animal, a que se refiere la fracción I, del Artículo Primero de este decreto, así como las líneas de producción de alimento, calderas y depósitos de agua."]
[null,"Producción de productos destinados a la alimentación humana y animal, a que se refiere la fracción I, del Artículo Primero de este decreto, así como las líneas de producción de alimento, calderas y depósitos de agua, cuando se enajenen, se pierden o dejen de ser útiles."]
[]
[]
[null,"INVENTARIO PENDIENTE DE DEDUCIR DE MERCANCÍAS, MATERIAS PRIMAS, PRODUCTOS SEMITERMINADOS O TERMINADOS"]
[]
[null,"FACILIDADES ADMINISTRATIVAS",{"$f":"SUM(C453:C457)","v":0}]
[null,"Contratar adultos mayores (25% del salario pagado)"]
[null,"Deducción del 25% del salario pagado por la contratación de personas que padezcan alguna discapacidad"]
[null,"Deducción adicional por enajenación de libros, periódicos y revistas"]
[null,"Deducción del costo de adquisición de terrenos por contribuyentes dedicados a la construcción y desarrollos inmobiliarios"]
[null,"Deducción adicional de gastos de capacitación (25% del incremento en el gasto efectivamente erogado - Decreto Relocalización)"]
[]
[null,"Total de deducciones autorizadas",{"$f":"IFERROR(C256+C268+C315+C450+C452,0)","v":0}]

{"sheet":"CATALOGO","index":14,"n_rows":335,"n_cols":11,"rows_kept":335,"cut":false,"hidden":true,"merged":[]}
[]
[]
[]
[null,"c_RiesgoPuesto","Descripción","Fecha inicio de vigencia","Fecha fin de vigencia",null,null,"c_TipoPercepcion","Descripción","Fecha inicio de vigencia","Fecha fin de vigencia"]
[null,1,"Clase I","2017-01-01",null,null,null,1,"Sueldos, Salarios  Rayas y Jornales","2016-11-01"]
[null,2,"Clase II","2017-01-01",null,null,null,2,"Gratificación Anual (Aguinaldo)","2016-11-01"]
[null,3,"Clase III","2017-01-01",null,null,null,3,"Participación de los Trabajadores en las Utilidades PTU","2016-11-01"]
[null,4,"Clase IV","2017-01-01",null,null,null,4,"Reembolso de Gastos Médicos Dentales y Hospitalarios","2016-11-01"]
[null,5,"Clase V","2017-01-01",null,null,null,5,"Fondo de Ahorro","2016-11-01"]
[null,99,"No aplica","2017-08-13",null,null,null,6,"Caja de ahorro","2016-11-01"]
[null,null,null,null,null,null,null,9,"Contribuciones a Cargo del Trabajador Pagadas por el Patrón","2016-11-01"]
[null,null,null,null,null,null,null,10,"Premios por puntualidad","2016-11-01"]
[null,"c_TipoRegimen","Descripción","Fecha inicio de vigencia","Fecha fin de vigencia",null,null,11,"Prima de Seguro de vida","2016-11-01"]
[null,2,"Sueldos (Incluye ingresos señalados en la fracción I del artículo 94 de LISR)","2017-01-01",null,null,null,12,"Seguro de Gastos Médicos Mayores","2016-11-01"]
[null,3,"Jubilados","2017-01-01",null,null,null,13,"Cuotas Sindicales Pagadas por el Patrón","2016-11-01"]
[null,4,"Pensionados","2017-01-01",null,null,null,14,"Subsidios por incapacidad","2016-11-01"]
[null,5,"Asimilados Miembros Sociedades Cooperativas Produccion","2017-01-01",null,null,null,15,"Becas para trabajadores y/o hijos","2016-11-01"]
[null,6,"Asimilados Integrantes Sociedades Asociaciones Civiles","2017-01-01",null,null,null,19,"Horas extra","2016-11-01"]
[null,7,"Asimilados Miembros consejos","2017-01-01",null,null,null,20,"Prima dominical","2016-11-01"]
[null,8,"Asimilados comisionistas","2017-01-01",null,null,null,21,"Prima vacacional","2016-11-01"]
[null,9,"Asimilados Honorarios","2017-01-01",null,null,null,22,"Prima por antigüedad","2016-11-01"]
[null,10,"Asimilados acciones","2017-01-01",null,null,null,23,"Pagos por separación","2016-11-01"]
[null,11,"Asimilados otros","2017-01-01",null,null,null,24,"Seguro de retiro","2016-11-01"]
[null,12,"Jubilados o Pensionados","2017-03-27",null,null,null,25,"Indemnizaciones","2016-11-01"]
[null,13,"Indemnización o Separación","2018-10-15",null,null,null,26,"Reembolso por funeral","2016-11-01"]
[null,99,"Otro Regimen","2017-01-01",null,null,null,27,"Cuotas de seguridad social pagadas por el patrón","2016-11-01"]
[null,null,null,null,null,null,null,28,"Comisiones","2016-11-01"]
[null,null,null,null,null,null,null,29,"Vales de despensa","2016-11-01"]
[null,"c_TipoContrato","Descripción",null,null,null,null,30,"Vales de restaurante","2016-11-01"]
[null,1,"Contrato de trabajo por tiempo indeterminado",null,null,null,null,31,"Vales de gasolina","2016-11-01"]
[null,2,"Contrato de trabajo para obra determinada",null,null,null,null,32,"Vales de ropa","2016-11-01"]
[null,3,"Contrato de trabajo por tiempo determinado",null,null,null,null,33,"Ayuda para renta","2016-11-01"]
[null,4,"Contrato de trabajo por temporada",null,null,null,null,34,"Ayuda para artículos escolares","2016-11-01"]
[null,5,"Contrato de trabajo sujeto a prueba",null,null,null,null,35,"Ayuda para anteojos","2016-11-01"]
[null,6,"Contrato de trabajo con capacitación inicial",null,null,null,null,36,"Ayuda para transporte","2016-11-01"]
[null,7,"Modalidad de contratación por pago de hora laborada",null,null,null,null,37,"Ayuda para gastos de funeral","2016-11-01"]
[null,8,"Modalidad de trabajo por comisión laboral",null,null,null,null,38,"Otros ingresos por salarios","2016-11-01"]
[null,9,"Modalidades de contratación donde no existe relación de trabajo",null,null,null,null,39,"Jubilaciones, pensiones o haberes de retiro","2016-11-01"]
[null,10,"Jubilación, pensión, retiro.",null,null,null,null,44,"Jubilaciones, pensiones o haberes de retiro en parcialidades","2016-11-01"]
[null,99,"Otro contrato",null,null,null,null,45,"Ingresos en acciones o títulos valor que representan bienes","2016-11-01"]
[null,null,null,null,null,null,null," 046","Ingresos asimilados a salarios","2016-11-01"]
[null,null,null,null,null,null,null," 047","Alimentación","2016-11-01"]
[null,"c_PeriodicidadPago","Descripción","Fecha inicio de vigencia","Fecha fin de vigencia",null,null,48,"Habitación","2016-11-01"]
[null,1,"Diario","2016-11-01",null,null,null,49,"Premios por asistencia","2016-11-01"]
[null,2,"Semanal","2016-11-01",null,null,null,50,"Viáticos","2017-01-06"]
[null,3,"Catorcenal","2016-11-01",null,null,null,51,"Pagos por gratificaciones, primas, compensaciones, recompensas u otros a extrabajadores derivados de jubilación en parcialidades","2018-10-15"]
[null,4,"Quincenal","2016-11-01",null,null,null,52,"Pagos que se realicen a extrabajadores que obtengan una jubilación en parcialidades derivados de la ejecución de resoluciones judicial o de un laudo","2018-10-15"]
[null,5,"Mensual","2016-11-01",null,null,null,53,"Pagos que se realicen a extrabajadores que obtengan una jubilación en una sola exhibición derivados de la ejecución de resoluciones judicial o de un laudo","2018-10-15"]
[null,6,"Bimestral","2016-11-01"]
[null,7,"Unidad obra","2016-11-01"]
[null,8,"Comisión","2016-11-01",null,null,null," c_TipoOtroPago","Descripción","Fecha inicio de vigencia","Fecha fin de vigencia"]
[null,9,"Precio alzado","2016-11-01",null,null,null,1,"Reintegro de ISR pagado en exceso (siempre que no haya sido enterado al SAT).","2017-01-01"]
[null,10,"Decenal","2017-01-19",null,null,null,2,"Subsidio para el empleo (efectivamente entregado al trabajador).","2017-01-01"]
[null,99,"Otra Periodicidad","2016-11-01",null,null,null,3,"Viáticos (entregados al trabajador).","2017-01-01"]
[null,null,null,null,null,null,null,4,"Aplicación de saldo a favor por compensación anual.","2017-01-01"]
[null,null,null,null,null,null,null,5,"Reintegro de ISR retenido en exceso de ejercicio anterior (siempre que no haya sido enterado al SAT).","2017-12-05"]
[null,"c_TipoIncapacidad","Descripción",null,null,null,null,999,"Pagos distintos a los listados y que no deben considerarse como ingreso por sueldos, salarios o ingresos asimilados.","2017-01-01"]
[null,1,"Riesgo de trabajo."]
[null,2,"Enfermedad en general."]
[null,3,"Maternidad.",null,null,null,null,"c_TipoDeduccion","Descripción","Fecha inicio de vigencia","Fecha fin de vigencia"]
[null,null,null,null,null,null,null,1,"Seguridad social","2016-11-01"]
[null,null,null,null,null,null,null,2,"ISR","2016-11-01"]
[null,"c_TipoJornada","Descripción",null,null,null,null,3,"Aportaciones a retiro, cesantía en edad avanzada y vejez.","2016-11-01"]
[null,1,"Diurna",null,null,null,null,4,"Otros","2016-11-01"]
[null,2,"Nocturna",null,null,null,null,5,"Aportaciones a Fondo de vivienda","2016-11-01"]
[null,3,"Mixta",null,null,null,null,6,"Descuento por incapacidad","2016-11-01"]
[null,4,"Por hora",null,null,null,null,7,"Pensión alimenticia","2016-11-01"]
[null,5,"Reducida",null,null,null,null,8,"Renta","2016-11-01"]
[null,6,"Continuada",null,null,null,null,9,"Préstamos provenientes del Fondo Nacional de la Vivienda para los Trabajadores","2016-11-01"]
[null,7,"Partida",null,null,null,null,10,"Pago por crédito de vivienda","2016-11-01"]
[null,8,"Por turnos",null,null,null,null,11,"Pago de abonos INFONACOT","2016-11-01"]
[null,99,"Otra Jornada",null,null,null,null,12,"Anticipo de salarios","2016-11-01"]
[null,null,null,null,null,null,null,13,"Pagos hechos con exceso al trabajador","2016-11-01"]
[null,null,null,null,null,null,null,14,"Errores","2016-11-01"]
[null,"c_Estado","c_Pais","Nombre del estado",null,null,null,15,"Pérdidas","2016-11-01"]
[null,"AGU","MEX","Aguascalientes",null,null,null,16,"Averías","2016-11-01"]
[null,"BCN","MEX","Baja California",null,null,null,17,"Adquisición de artículos producidos por la empresa o establecimiento","2016-11-01"]
[null,"BCS","MEX","Baja California Sur",null,null,null,18,"Cuotas para la constitución y fomento de sociedades cooperativas y de cajas de ahorro","2016-11-01"]
[null,"CAM","MEX","Campeche",null,null,null,19,"Cuotas sindicales","2016-11-01"]
[null,"CHP","MEX","Chiapas",null,null,null,20,"Ausencia (Ausentismo)","2016-11-01"]
[null,"CHH","MEX","Chihuahua",null,null,null,21,"Cuotas obrero patronales","2016-11-01"]
[null,"COA","MEX","Coahuila",null,null,null,22,"Impuestos Locales","2016-11-01"]
[null,"COL","MEX","Colima",null,null,null,23,"Aportaciones voluntarias","2016-11-01"]
[null,"DIF","MEX","Ciudad de México",null,null,null,24,"Ajuste en Gratificación Anual (Aguinaldo) Exento","2017-01-06"]
[null,"DUR","MEX","Durango",null,null,null,25,"Ajuste en Gratificación Anual (Aguinaldo) Gravado","2017-01-06"]
[null,"GUA","MEX","Guanajuato",null,null,null,26,"Ajuste en Participación de los Trabajadores en las Utilidades PTU Exento","2017-01-06"]
[null,"GRO","MEX","Guerrero",null,null,null,27,"Ajuste en Participación de los Trabajadores en las Utilidades PTU Gravado","2017-01-06"]
[null,"HID","MEX","Hidalgo",null,null,null,28,"Ajuste en Reembolso de Gastos Médicos Dentales y Hospitalarios Exento","2017-01-06"]
[null,"JAL","MEX","Jalisco",null,null,null,29,"Ajuste en Fondo de ahorro Exento","2017-01-06"]
[null,"MEX","MEX","Estado de México",null,null,null,30,"Ajuste en Caja de ahorro Exento","2017-01-06"]
[null,"MIC","MEX","Michoacán",null,null,null,31,"Ajuste en Contribuciones a Cargo del Trabajador Pagadas por el Patrón Exento","2017-01-06"]
[null,"MOR","MEX","Morelos",null,null,null,32,"Ajuste en Premios por puntualidad Gravado","2017-01-06"]
[null,"NAY","MEX","Nayarit",null,null,null,33,"Ajuste en Prima de Seguro de vida Exento","2017-01-06"]
[null,"NLE","MEX","Nuevo León",null,null,null,34,"Ajuste en Seguro de Gastos Médicos Mayores Exento","2017-01-06"]
[null,"OAX","MEX","Oaxaca",null,null,null,35,"Ajuste en Cuotas Sindicales Pagadas por el Patrón Exento","2017-01-06"]
[null,"PUE","MEX","Puebla",null,null,null,36,"Ajuste en Subsidios por incapacidad Exento","2017-01-06"]
[null,"QUE","MEX","Querétaro",null,null,null,37,"Ajuste en Becas para trabajadores y/o hijos Exento","2017-01-06"]
[null,"ROO","MEX","Quintana Roo",null,null,null,38,"Ajuste en Horas extra Exento","2017-01-06"]
[null,"SLP","MEX","San Luis Potosí",null,null,null,39,"Ajuste en Horas extra Gravado","2017-01-06"]
[null,"SIN","MEX","Sinaloa",null,null,null,40,"Ajuste en Prima dominical Exento","2017-01-06"]
[null,"SON","MEX","Sonora",null,null,null,41,"Ajuste en Prima dominical Gravado","2017-01-06"]
[null,"TAB","MEX","Tabasco",null,null,null,42,"Ajuste en Prima vacacional Exento","2017-01-06"]
[null,"TAM","MEX","Tamaulipas",null,null,null,43,"Ajuste en Prima vacacional Gravado","2017-01-06"]
[null,"TLA","MEX","Tlaxcala",null,null,null,44,"Ajuste en Prima por antigüedad Exento","2017-01-06"]
[null,"VER","MEX","Veracruz",null,null,null,45,"Ajuste en Prima por antigüedad Gravado","2017-01-06"]
[null,"YUC","MEX","Yucatán",null,null,null,46,"Ajuste en Pagos por separación Exento","2017-01-06"]
[null,"ZAC","MEX","Zacatecas",null,null,null,47,"Ajuste en Pagos por separación Gravado","2017-01-06"]
[null,"AL","USA","Alabama",null,null,null,48,"Ajuste en Seguro de retiro Exento","2017-01-06"]
[null,"AK","USA","Alaska",null,null,null,49,"Ajuste en Indemnizaciones Exento","2017-01-06"]
[null,"AZ","USA","Arizona",null,null,null,50,"Ajuste en Indemnizaciones Gravado","2017-01-06"]
[null,"AR","USA","Arkansas",null,null,null,51,"Ajuste en Reembolso por funeral Exento","2017-01-06"]
[null,"CA","USA","California",null,null,null,52,"Ajuste en Cuotas de seguridad social pagadas por el patrón Exento","2017-01-06"]
[null,"NC","USA","Carolina del Norte",null,null,null,53,"Ajuste en Comisiones Gravado","2017-01-06"]
[null,"SC","USA","Carolina del Sur",null,null,null,54,"Ajuste en Vales de despensa Exento","2017-01-06"]
[null,"CO","USA","Colorado",null,null,null,55,"Ajuste en Vales de restaurante Exento","2017-01-06"]
[null,"CT","USA","Connecticut",null,null,null,56,"Ajuste en Vales de gasolina Exento","2017-01-06"]
[null,"ND","USA","Dakota del Norte",null,null,null,57,"Ajuste en Vales de ropa Exento","2017-01-06"]
[null,"SD","USA","Dakota del Sur",null,null,null,58,"Ajuste en Ayuda para renta Exento","2017-01-06"]
[null,"DE","USA","Delaware",null,null,null,59,"Ajuste en Ayuda para artículos escolares Exento","2017-01-06"]
[null,"FL","USA","Florida",null,null,null,60,"Ajuste en Ayuda para anteojos Exento","2017-01-06"]
[null,"GA","USA","Georgia",null,null,null,61,"Ajuste en Ayuda para transporte Exento","2017-01-06"]
[null,"HI","USA","Hawái",null,null,null,62,"Ajuste en Ayuda para gastos de funeral Exento","2017-01-06"]
[null,"ID","USA","Idaho",null,null,null,63,"Ajuste en Otros ingresos por salarios Exento","2017-01-06"]
[null,"IL","USA","Illinois",null,null,null,64,"Ajuste en Otros ingresos por salarios Gravado","2017-01-06"]
[null,"IN","USA","Indiana",null,null,null,65,"Ajuste en Jubilaciones, pensiones o haberes de retiro en una sola exhibición Exento ","2018-10-15"]
[null,"IA","USA","Iowa",null,null,null,66,"Ajuste en Jubilaciones, pensiones o haberes de retiro en una sola exhibición Gravado","2018-10-15"]
[null,"KS","USA","Kansas",null,null,null,67,"Ajuste en Pagos por separación Acumulable","2017-01-06"]
[null,"KY","USA","Kentucky",null,null,null,68,"Ajuste en Pagos por separación No acumulable","2017-01-06"]
[null,"LA","USA","Luisiana",null,null,null,69,"Ajuste en Jubilaciones, pensiones o haberes de retiro en parcialidades Exento","2018-10-15"]
[null,"ME","USA","Maine",null,null,null,70,"Ajuste en Jubilaciones, pensiones o haberes de retiro en parcialidades Gravado","2018-10-15"]
[null,"MD","USA","Maryland",null,null,null,71,"Ajuste en Subsidio para el empleo (efectivamente entregado al trabajador)","2017-01-06"]
[null,"MA","USA","Massachusetts",null,null,null,72,"Ajuste en Ingresos en acciones o títulos valor que representan bienes Exento","2017-01-06","2018-10-14"]
[null,"MI","USA","Míchigan",null,null,null,73,"Ajuste en Ingresos en acciones o títulos valor que representan bienes Gravado","2017-01-06"]
[null,"MN","USA","Minnesota",null,null,null,74,"Ajuste en Alimentación Exento","2017-01-06"]
[null,"MS","USA","Misisipi",null,null,null,75,"Ajuste en Alimentación Gravado","2017-01-06"]
[null,"MO","USA","Misuri",null,null,null,76,"Ajuste en Habitación Exento","2017-01-06"]
[null,"MT","USA","Montana",null,null,null,77,"Ajuste en Habitación Gravado","2017-01-06"]
[null,"NE","USA","Nebraska",null,null,null,78,"Ajuste en Premios por asistencia","2017-01-06"]
[null,"NV","USA","Nevada",null,null,null,79,"Ajuste en Pagos distintos a los listados y que no deben considerarse como ingreso por sueldos, salarios o ingresos asimilados.","2017-01-06"]
[null,"NJ","USA","Nueva Jersey",null,null,null,80,"Ajuste en Viáticos gravados","2017-01-06"]
[null,"NY","USA","Nueva York",null,null,null,81,"Ajuste en Viáticos (entregados al trabajador)","2017-01-06"]
[null,"NH","USA","Nuevo Hampshire",null,null,null,"082","Ajuste en Fondo de ahorro Gravado","2017-01-06"]
[null,"NM","USA","Nuevo México",null,null,null,"083","Ajuste en Caja de ahorro Gravado","2017-01-06"]
[null,"OH","USA","Ohio",null,null,null,"084","Ajuste en Prima de Seguro de vida Gravado","2017-01-06"]
[null,"OK","USA","Oklahoma",null,null,null,"085","Ajuste en Seguro de Gastos Médicos Mayores Gravado","2017-01-06"]
[null,"OR","USA","Oregón",null,null,null,"086","Ajuste en Subsidios por incapacidad Gravado","2017-01-06"]
[null,"PA","USA","Pensilvania",null,null,null,"087","Ajuste en Becas para trabajadores y/o hijos Gravado","2017-01-06"]
[null,"RI","USA","Rhode Island",null,null,null,"088","Ajuste en Seguro de retiro Gravado","2017-01-06"]
[null,"TN","USA","Tennessee",null,null,null,"089","Ajuste en Vales de despensa Gravado","2017-01-06"]
[null,"TX","USA","Texas",null,null,null,"090","Ajuste en Vales de restaurante Gravado","2017-01-06"]
[null,"UT","USA","Utah",null,null,null,"091","Ajuste en Vales de gasolina Gravado","2017-01-06"]
[null,"VT","USA","Vermont",null,null,null,"092","Ajuste en Vales de ropa Gravado","2017-01-06"]
[null,"VA","USA","Virginia",null,null,null,"093","Ajuste en Ayuda para renta Gravado","2017-01-06"]
[null,"WV","USA","Virginia Occidental",null,null,null,"094","Ajuste en Ayuda para artículos escolares Gravado","2017-01-06"]
[null,"WA","USA","Washington",null,null,null,"095","Ajuste en Ayuda para anteojos Gravado","2017-01-06"]
[null,"WI","USA","Wisconsin",null,null,null,"096","Ajuste en Ayuda para transporte Gravado","2017-01-06"]
[null,"WY","USA","Wyoming",null,null,null,"097","Ajuste en Ayuda para gastos de funeral Gravado","2017-01-06"]
[null,"ON","CAN","Ontario ",null,null,null,"098","Ajuste a ingresos asimilados a salarios gravados","2017-01-06"]
[null,"QC","CAN"," Quebec ",null,null,null,"099","Ajuste a ingresos por sueldos y salarios gravados","2017-01-06"]
[null,"NS","CAN"," Nueva Escocia",null,null,null,100,"Ajuste en Viáticos exentos","2017-01-06"]
[null,"NB","CAN","Nuevo Brunswick ",null,null,null,101,"ISR Retenido de ejercicio anterior","2017-12-05"]
[null,"MB","CAN"," Manitoba",null,null,null,102,"Ajuste a pagos por gratificaciones, primas, compensaciones, recompensas u otros a extrabajadores derivados de jubilación en parcialidades, gravados","2018-10-15"]
[null,"BC","CAN"," Columbia Británica",null,null,null,103,"Ajuste a pagos que se realicen a extrabajadores que obtengan una jubilación en parcialidades derivados de la ejecución de una resolución judicial o de un laudo gravados","2018-10-15"]
[null,"PE","CAN"," Isla del Príncipe Eduardo",null,null,null,104,"Ajuste a pagos que se realicen a extrabajadores que obtengan una jubilación en parcialidades derivados de la ejecución de una resolución judicial o de un laudo exentos","2018-10-15"]
[null,"SK","CAN"," Saskatchewan",null,null,null,105,"Ajuste a pagos que se realicen a extrabajadores que obtengan una jubilación en una sola exhibición derivados de la ejecución de una resolución judicial o de un laudo gravados","2018-10-15"]
[null,"AB","CAN"," Alberta",null,null,null,106,"Ajuste a pagos que se realicen a extrabajadores que obtengan una jubilación en una sola exhibición derivados de la ejecución de una resolución judicial o de un laudo exentos","2018-10-15"]
[null,"NL","CAN"," Terranova y Labrador"]
[null,"NT","CAN"," Territorios del Noroeste"]
[null,"YT","CAN"," Yukón"]
[null,"UN","CAN"," Nunavut"]
[]
[]
[]
[]
[]
[]
[]
[]
[]
[]
[]
[]
[]
[]
[null,"c_TipoPercepcion","Descripción","Gravado","Exento","Régimen","Régimen consula","c_TipoRegimen","Descripción"]
[null,1,"Sueldos, Salarios  Rayas y Jornales","a","r",2,{"$f":"F186-B186","v":1},2,"Sueldos (Incluye ingresos señalados en la fracción I del artículo 94 de LISR)",2]
[null,2,"Gratificación Anual (Aguinaldo)","a","a",2,{"$f":"F187-B187","v":0},3,"Jubilados",3412]
[null,3,"Participación de los Trabajadores en las Utilidades PTU","a","a",2,-1,4,"Pensionados",3412]
[null,4,"Reembolso de Gastos Médicos Dentales y Hospitalarios","a","a",2,-2,5,"Asimilados Miembros Sociedades Cooperativas Produccion",567891011]
[null,5,"Fondo de Ahorro","a","a",2,-3,6,"Asimilados Integrantes Sociedades Asociaciones Civiles",567891011]
[null,6,"Caja de ahorro","a","a",2,-4,7,"Asimilados Miembros consejos",567891011]
[null,9,"Contribuciones a Cargo del Trabajador Pagadas por el Patrón","a","r",2,-7,8,"Asimilados comisionistas",567891011]
[null,10,"Premios por puntualidad","a","r",2,-8,9,"Asimilados Honorarios",567891011]
[null,11,"Prima de Seguro de vida","a","a",2,-9,10,"Asimilados acciones",567891011]
[null,12,"Seguro de Gastos Médicos Mayores","a","a",2,-10,11,"Asimilados otros",567891011]
[null,13,"Cuotas Sindicales Pagadas por el Patrón","a","a",2,-11,12,"Jubilados o Pensionados",3412]
[null,14,"Subsidios por incapacidad","a","a",2,-12,13,"Indemnización o Separación",13]
[null,15,"Becas para trabajadores y/o hijos","a","a",2,-13,99,"Otro Regimen",99]
[null,19,"Horas extra","a","a",2,-17]
[null,20,"Prima dominical","a","a",2,-18]
[null,21,"Prima vacacional","a","a",2,-19]
[null,24,"Seguro de retiro","a","a",2,-22]
[null,26,"Reembolso por funeral","a","a",2,-24]
[null,27,"Cuotas de seguridad social pagadas por el patrón","r","a",2,-25]
[null,28,"Comisiones","a","r",2,-26]
[null,29,"Vales de despensa","a","a",2,-27]
[null,30,"Vales de restaurante","a","a",2,-28]
[null,31,"Vales de gasolina","a","a",2,-29]
[null,32,"Vales de ropa","a","a",2,-30]
[null,33,"Ayuda para renta","a","a",2,-31]
[null,34,"Ayuda para artículos escolares","a","a",2,-32]
[null,35,"Ayuda para anteojos","a","a",2,-33]
[null,36,"Ayuda para transporte","a","a",2,-34]
[null,37,"Ayuda para gastos de funeral","a","a",2,-35]
[null,38,"Otros ingresos por salarios","a","a",2,-36]
[null,47,"Alimentación diferentes a los establecidos en el Art 94 último párrafo LISR","a","a",2,-45]
[null,48,"Habitación","a","a",2,-46]
[null,49,"Premios por asistencia","a","r",2,-47]
[null,50,"Viáticos","a","a",2,-48]
[null,39,"Jubilaciones, pensiones o haberes de retiro","a","a",3412,3373]
[null,44,"Jubilaciones, pensiones o haberes de retiro en parcialidades","a","a",3412,3368]
[null,51,"Pagos por gratificaciones, primas, compensaciones, recompensas u otros a extrabajadores derivados de jubilación en parcialidades","a","r",3412,3361]
[null,52,"Pagos que se realicen a extrabajadores que obtengan una jubilación en parcialidades derivados de la ejecución de resoluciones judicial o de un laudo","a","a",3412,3360]
[null,53,"Pagos que se realicen a extrabajadores que obtengan una jubilación en una sola exhibición derivados de la ejecución de resoluciones judicial o de un laudo","a","a",3412,3359]
[null,22,"Prima por antigüedad","a","a",13,-9]
[null,23,"Pagos por separación","a","a",13,-10]
[null,25,"Indemnizaciones","a","a",13,-12]
[null,45,"Ingresos en acciones o títulos valor que representan bienes","a","r",567891011,567890966]
[null,46,"Ingresos asimilados a salarios","a","r",567891011,567890965]
[]
[]
[]
[]
[]
[]
[]
[]
[]
[]
[]
[]
[]
[]
[]
[]
[]
[]
[]
[]
[]
[]
[]
[]
[]
[]
[]
[]
[]
[]
[]
[]
[]
[]
[]
[]
[]
[]
[]
[]
[]
[]
[]
[]
[]
[]
[]
[]
[]
[]
[]
[]
[]
[]
[]
[]
[]
[]
[]
[]
[]
[]
[]
[]
[]
[]
[]
[]
[]
[]
[]
[]
[]
[]
[]
[]
[]
[]
[]
[]
[]
[]
[]
[]
[]
[]
[]
[]
[]
[]
[]
[]
[]
[]
[null,1,"Enero"]
[null,2,"Febrero"]
[null,3,"Marzo"]
[null,4,"Abril"]
[null,5,"Mayo"]
[null,6,"Junio"]
[null,7,"Julio"]
[null,8,"Agosto"]
[null,9,"Septiembre"]
[null,10,"Octubre"]
[null,11,"Noviembre"]
[null,12,"Diciembre"]

{"sheet":"c_Estado","index":15,"n_rows":100,"n_cols":5,"rows_kept":100,"cut":false,"hidden":true,"merged":[[0,0,0,2]]}
["Catálogo de estados. "]
[]
[]
[]
["c_Estado","c_Pais","Nombre del estado","Fecha inicio de vigencia","Fecha fin de vigencia"]
["AGU","MEX","Aguascalientes","2022-01-01"]
["BCN","MEX","Baja California","2022-01-01"]
["BCS","MEX","Baja California Sur","2022-01-01"]
["CAM","MEX","Campeche","2022-01-01"]
["CHP","MEX","Chiapas","2022-01-01"]
["CHH","MEX","Chihuahua","2022-01-01"]
["COA","MEX","Coahuila","2022-01-01"]
["COL","MEX","Colima","2022-01-01"]
["CMX","MEX","Ciudad de México","2022-01-01"]
["DUR","MEX","Durango","2022-01-01"]
["GUA","MEX","Guanajuato","2022-01-01"]
["GRO","MEX","Guerrero","2022-01-01"]
["HID","MEX","Hidalgo","2022-01-01"]
["JAL","MEX","Jalisco","2022-01-01"]
["MEX","MEX","Estado de México","2022-01-01"]
["MIC","MEX","Michoacán","2022-01-01"]
["MOR","MEX","Morelos","2022-01-01"]
["NAY","MEX","Nayarit","2022-01-01"]
["NLE","MEX","Nuevo León","2022-01-01"]
["OAX","MEX","Oaxaca","2022-01-01"]
["PUE","MEX","Puebla","2022-01-01"]
["QUE","MEX","Querétaro","2022-01-01"]
["ROO","MEX","Quintana Roo","2022-01-01"]
["SLP","MEX","San Luis Potosí","2022-01-01"]
["SIN","MEX","Sinaloa","2022-01-01"]
["SON","MEX","Sonora","2022-01-01"]
["TAB","MEX","Tabasco","2022-01-01"]
["TAM","MEX","Tamaulipas","2022-01-01"]
["TLA","MEX","Tlaxcala","2022-01-01"]
["VER","MEX","Veracruz","2022-01-01"]
["YUC","MEX","Yucatán","2022-01-01"]
["ZAC","MEX","Zacatecas","2022-01-01"]
["AL","USA","Alabama","2022-01-01"]
["AK","USA","Alaska","2022-01-01"]
["AZ","USA","Arizona","2022-01-01"]
["AR","USA","Arkansas","2022-01-01"]
["CA","USA","California","2022-01-01"]
["NC","USA","Carolina del Norte","2022-01-01"]
["SC","USA","Carolina del Sur","2022-01-01"]
["CO","USA","Colorado","2022-01-01"]
["CT","USA","Connecticut","2022-01-01"]
["ND","USA","Dakota del Norte","2022-01-01"]
["SD","USA","Dakota del Sur","2022-01-01"]
["DE","USA","Delaware","2022-01-01"]
["FL","USA","Florida","2022-01-01"]
["GA","USA","Georgia","2022-01-01"]
["HI","USA","Hawái","2022-01-01"]
["ID","USA","Idaho","2022-01-01"]
["IL","USA","Illinois","2022-01-01"]
["IN","USA","Indiana","2022-01-01"]
["IA","USA","Iowa","2022-01-01"]
["KS","USA","Kansas","2022-01-01"]
["KY","USA","Kentucky","2022-01-01"]
["LA","USA","Luisiana","2022-01-01"]
["ME","USA","Maine","2022-01-01"]
["MD","USA","Maryland","2022-01-01"]
["MA","USA","Massachusetts","2022-01-01"]
["MI","USA","Míchigan","2022-01-01"]
["MN","USA","Minnesota","2022-01-01"]
["MS","USA","Misisipi","2022-01-01"]
["MO","USA","Misuri","2022-01-01"]
["MT","USA","Montana","2022-01-01"]
["NE","USA","Nebraska","2022-01-01"]
["NV","USA","Nevada","2022-01-01"]
["NJ","USA","Nueva Jersey","2022-01-01"]
["NY","USA","Nueva York","2022-01-01"]
["NH","USA","Nuevo Hampshire","2022-01-01"]
["NM","USA","Nuevo México","2022-01-01"]
["OH","USA","Ohio","2022-01-01"]
["OK","USA","Oklahoma","2022-01-01"]
["OR","USA","Oregón","2022-01-01"]
["PA","USA","Pensilvania","2022-01-01"]
["RI","USA","Rhode Island","2022-01-01"]
["TN","USA","Tennessee","2022-01-01"]
["TX","USA","Texas","2022-01-01"]
["UT","USA","Utah","2022-01-01"]
["VT","USA","Vermont","2022-01-01"]
["VA","USA","Virginia","2022-01-01"]
["WV","USA","Virginia Occidental","2022-01-01"]
["WA","USA","Washington","2022-01-01"]
["WI","USA","Wisconsin","2022-01-01"]
["WY","USA","Wyoming","2022-01-01"]
["ON","CAN","Ontario ","2022-01-01"]
["QC","CAN"," Quebec ","2022-01-01"]
["NS","CAN"," Nueva Escocia","2022-01-01"]
["NB","CAN","Nuevo Brunswick ","2022-01-01"]
["MB","CAN"," Manitoba","2022-01-01"]
["BC","CAN"," Columbia Británica","2022-01-01"]
["PE","CAN"," Isla del Príncipe Eduardo","2022-01-01"]
["SK","CAN"," Saskatchewan","2022-01-01"]
["AB","CAN"," Alberta","2022-01-01"]
["NL","CAN"," Terranova y Labrador","2022-01-01"]
["NT","CAN"," Territorios del Noroeste","2022-01-01"]
["YT","CAN"," Yukón","2022-01-01"]
["UN","CAN"," Nunavut","2022-01-01"]

{"sheet":"DATOS","index":16,"n_rows":305,"n_cols":11,"rows_kept":305,"cut":false,"hidden":true,"merged":[[72,8,72,9]]}
[]
[]
[]
[null,"LICENCIA"]
[null,"NOMBRE","NO INSTALADO"]
[null,"RFC"]
[]
[null,"No. para solicitar contraseña",null,{"$f":"IFERROR(MID(C4,2,1)&MID(C5,3,2)&MID(C6,5,3),\"\")","v":" I"}]
[]
[null,"Contraseña para ingresar",null,{"$f":"C12&C13&C14&C15&C16&C17","v":"K9"},null,null,null,null,"A",5]
[null,null,null,null,null,null,null,null,"B",9]
[null,{"$f":"IFERROR(MID($D$8,1,1),X)","v":" "},{"$f":"IFERROR(VLOOKUP(B12,$I$10:$J$50,2,FALSE),\"\")","v":"K"},null,null,null,null,null,"C",2]
[null,{"$f":"IFERROR(MID($D$8,2,1),X)","v":"I"},9,null,null,null,null,null,"D",4]
[null,{"$f":"IFERROR(MID($D$8,3,1),X)","v":""},"",null,null,null,null,null,"E",8]
[null,{"$f":"IFERROR(MID($D$8,4,1),X)","v":""},"",null,null,null,null,null,"F",3]
[null,{"$f":"IFERROR(MID($D$8,5,1),X)","v":""},"",null,null,null,null,null,"G",7]
[null,{"$f":"IFERROR(MID($D$8,6,1),X)","v":""},"",null,null,null,null,null,"H",2]
[null,null,null,null,null,null,null,null,"I",9]
[null,null,null,null,null,null,null,null,"J",6]
[null,null,null,null,null,null,null,null,"K",1]
[null,null,null,null,null,null,null,null,"L",8]
[null,null,null,null,null,null,null,null,"M",2]
[null,null,null,null,null,null,null,null,"N",0]
[null,null,null,null,null,null,null,null,"Ñ",4]
[null,null,null,null,null,null,null,null,"O",7]
[null,null,null,null,null,null,null,null,"P",3]
[null,null,null,null,null,null,null,null,"Q",9]
[null,null,null,null,null,null,null,null,"R",5]
[null,null,null,null,null,null,null,null,"S",2]
[null,null,null,null,null,null,null,null,"T",4]
[null,null,null,null,null,null,null,null,"U",7]
[null,null,null,null,null,null,null,null,"V",6]
[null,null,null,null,null,null,null,null,"W",5]
[null,null,null,null,null,null,null,null,"X",9]
[null,null,null,null,null,null,null,null,"Y",3]
[null,null,null,null,null,null,null,null,"Z",8]
[null,null,null,null,null,null,null,null,"&",4]
[null,null,null,null,null,null,null,null,"0","A"]
[null,null,null,null,null,null,null,null,"1","D"]
[null,null,null,null,null,null,null,null,"2","G"]
[null,null,null,null,null,null,null,null,"3","T"]
[null,null,null,null,null,null,null,null,"4","R"]
[null,null,null,null,null,null,null,null,"5","H"]
[null,null,null,null,null,null,null,null,"6","C"]
[null,null,null,null,null,null,null,null,"7","K"]
[null,null,null,null,null,null,null,null,"8","O"]
[null,null,null,null,null,null,null,null,"9","P"]
[null,null,null,null,null,null,null,null,".","&"]
[null,null,null,null,null,null,null,null,",","Y"]
[null,null,null,null,null,null,null,null," ","K"]
[]
[]
[]
[]
[]
[null,"Enero","Diciembre",12]
[null,"Febrero","Enero",11]
[null,"Marzo","Febrero",10]
[null,"Abril","Marzo",9]
[null,"Mayo","Abril",8]
[null,"Junio","Mayo",7]
[null,"Julio","Junio",6]
[null,"Agosto","Julio",5]
[null,"Septiembre","Agosto",4]
[null,"Octubre","Septiembre",3]
[null,"Noviembre","Octubre",2]
[null,"Diciembre","Noviembre",1]
[]
[]
[]
[null,null,"Año en que se genero la pérdida"]
[null,null,"Importe de la pérdida"]
[null,null,null,null,null,null,null,null,"Amortización de pérdidas"]
[null,"No. de actualización","Año de actualización","Monto de la pérdida","INPC más reciente","INPC más antiguo","Factor de actualización","Pérdida fiscal actualizada","Año de amortización","Pérdida amortizada","Saldo pendiente"]
[null,{"$f":"IF(AND(D71<>\"\",D72<>\"\"),\"1\",\"\")","v":""},{"$f":"IF(D71<>\"\",D71,\"\")","v":""},{"$f":"IFERROR(IF(D72<>\"\",D72,\"\"),\"\")","v":""},{"$f":"IFERROR(INDEX(TINPC,MATCH(D71,INPCA,0),MATCH(\"Diciembre\",INPCM,0)),\"\")","v":""},{"$f":"IFERROR(INDEX(TINPC,MATCH(D71,INPCA,0),MATCH(\"Julio\",INPCM,0)),\"\")","v":""},{"$f":"IFERROR(IF((E75/F75)<1,1,TRUNC(E75/F75,4)),\"\")","v":""},{"$f":"IFERROR(ROUND(D75*G75,0),\"\")","v":""},null,null,{"$f":"IFERROR(H75-J75,\"\")","v":""}]
[null,{"$f":"IFERROR(IF(B75<>\"\",B75+1,\"\"),\"\")","v":""},{"$f":"IFERROR(C75+1,\"\")","v":""},{"$f":"IFERROR(K75,\"\")","v":""},{"$f":"IFERROR(INDEX(TINPC,MATCH(C76,INPCA,0),MATCH(\"Junio\",INPCM,0)),\"\")","v":""},{"$f":"IFERROR(E75,\"\")","v":""},{"$f":"IFERROR(IF((E76/F76)<1,1,TRUNC(E76/F76,4)),\"\")","v":""},{"$f":"IFERROR(ROUND(D76*G76,0),\"\")","v":""},null,null,{"$f":"IFERROR(H76-J76,\"\")","v":""}]
[null,{"$f":"IFERROR(IF(B76<>\"\",B76+1,\"\"),\"\")","v":""},{"$f":"IFERROR(C76+1,\"\")","v":""},{"$f":"IFERROR(K76,\"\")","v":""},"",{"$f":"E76","v":""},"","",null,null,""]
[null,"","",{"$f":"IFERROR(K77,\"\")","v":""},"",{"$f":"E77","v":""},"","",null,null,""]
[null,"","","","","","","",null,null,""]
[null,"","","","","","","",null,null,""]
[null,"","","","","","","",null,null,""]
[null,"","","","","","","",null,null,""]
[null,"","","","","","","",null,null,""]
[null,"","","","","","","",null,null,""]
[]
[null,"www.acfmsc.com"]
[]
[null,"Cargos y gastos diferidos (NO SELECCIONAR)",null,null,null,{"$f":"\" \"&B88","v":" Cargos y gastos diferidos (NO SELECCIONAR)"}]
[null,"   Cargos diferidos",null,null,null,{"$f":"\"  \"&B89","v":"     Cargos diferidos"}]
[null,"   Erogaciones realizadas en periodos preoperativos",null,null,null,{"$f":"\"  \"&B90","v":"     Erogaciones realizadas en periodos preoperativos"}]
[null,"   Regalías, asistencia técnica, otor gastos diferidos",null,null,null,"     Regalías, asistencia técnica, otor gastos diferidos"]
[null,"   Activos intangibles",null,null,null,"     Activos intangibles"]
[null,"Construcciones (NO SELECCIONAR)",null,null,null,"  Construcciones (NO SELECCIONAR)"]
[null,"   Inmuebles declarados como monumentos arqueológicos, artísticos, históricos o patrimoniales",null,null,null,"     Inmuebles declarados como monumentos arqueológicos, artísticos, históricos o patrimoniales"]
[null,"   Instalaciones, adiciones, reparaciones, mejoras, adaptaciones en un lote minero",null,null,null,"     Instalaciones, adiciones, reparaciones, mejoras, adaptaciones en un lote minero"]
[null,"Ferrocarriles (NO SELECCIONAR)",null,null,null,"  Ferrocarriles (NO SELECCIONAR)"]
[null,"   Bombas de suministro de combustible a trenes",null,null,null,"     Bombas de suministro de combustible a trenes"]
[null,"   Vías férreas",null,null,null,"     Vías férreas"]
[null,"   Carros de ferrocarril, locomotoras, armones y autoarmones",null,null,null,"     Carros de ferrocarril, locomotoras, armones y autoarmones"]
[null,"   Maquinaria niveladora de vías, desclavados, esmeriles para vías, gastos de motor para levantar la vía, removedora, insertadora y taladradora de durmientes",null,null,null,"     Maquinaria niveladora de vías, desclavados, esmeriles para vías, gastos de motor para levantar la vía, removedora, insertadora y taladradora de durmientes"]
[null,"   Equipo de comunicación, señalización y telemando",null,null,null,"     Equipo de comunicación, señalización y telemando"]
[null,"Mobiliario y equipo de oficina (NO SELECCIONAR)",null,null,null,"  Mobiliario y equipo de oficina (NO SELECCIONAR)"]
[null,"   Mobiliario y equipo de oficina  ",null,null,null,"     Mobiliario y equipo de oficina  "]
[null,"Embarcaciones (NO SELECCIONAR)",null,null,null,"  Embarcaciones (NO SELECCIONAR)"]
[null,"   Embarcaciones",null,null,null,"     Embarcaciones"]
[null,"Aviones (NO SELECCIONAR)",null,null,null,"  Aviones (NO SELECCIONAR)"]
[null,"  Dedicados a la aerofumigación agrícola",null,null,null,"    Dedicados a la aerofumigación agrícola"]
[null,"  Para los demás",null,null,null,"    Para los demás"]
[null,"Automóviles (NO SELECCIONAR)",null,null,null,"  Automóviles (NO SELECCIONAR)"]
[null,"  Automóviles, autobuses, camiones de carga, tractocamiones, montacargas y remolques",null,null,null,"    Automóviles, autobuses, camiones de carga, tractocamiones, montacargas y remolques"]
[null,"Computadoras (NO SELECCIONAR)",null,null,null,"  Computadoras (NO SELECCIONAR)"]
[null,"  Computadoras personales de escritorio y portátiles; servidores; impresoras, lectore ópticos, graficadores, lectores de código de barras, digitalizadores, unidades de almacenamiento externo",null,null,null,"    Computadoras personales de escritorio y portátiles; servidores; impresoras, lectore ópticos, graficadores, lectores de código de barras, digitalizadores, unidades de almacenamiento externo"]
[null,"Dados troqueles moldes matrices y herramental (NO SELECCIONAR)",null,null,null,"  Dados troqueles moldes matrices y herramental (NO SELECCIONAR)"]
[null,"  Dados, troqueles, moldes, matrices y herramental",null,null,null,"    Dados, troqueles, moldes, matrices y herramental"]
[null,"Semovientes y vegetales (NO SELECCIONAR)",null,null,null,"  Semovientes y vegetales (NO SELECCIONAR)"]
[null,"  Semovientes y vegetales  ",null,null,null,"    Semovientes y vegetales  "]
[null,"Comunicaciones telefónicas (NO SELECCIONAR)",null,null,null,"  Comunicaciones telefónicas (NO SELECCIONAR)"]
[null,"  Torres de transmisión y cables, excepto los de fibra óptica",null,null,null,"    Torres de transmisión y cables, excepto los de fibra óptica"]
[null,"  Sistemas de radio, equipo de transmisión, radiotransmisión de microonda digital o analógica, torres de microondas y guías de onda",null,null,null,"    Sistemas de radio, equipo de transmisión, radiotransmisión de microonda digital o analógica, torres de microondas y guías de onda"]
[null,"  Equipo utilizado en la transmisión como circuitos de la planta interna que no forman parte de la conmutación",null,null,null,"    Equipo utilizado en la transmisión como circuitos de la planta interna que no forman parte de la conmutación"]
[null,"  Equipo de la central telefónica destinado a la conmutación de llamadas de tecnología destina a la electromecánica",null,null,null,"    Equipo de la central telefónica destinado a la conmutación de llamadas de tecnología destina a la electromecánica"]
[null,"  Para los demás",null,null,null,"    Para los demás"]
[null,"Comunicaciones satelitales (NO SELECCIONAR)",null,null,null,"  Comunicaciones satelitales (NO SELECCIONAR)"]
[null,"  Segmento satelital en el espacio, incluyendo el cuerpo principal del satélite, los transpondedores, las antenas para la transmisión y recepción de comunicaciones digitales y análogas y el equipo",null,null,null,"    Segmento satelital en el espacio, incluyendo el cuerpo principal del satélite, los transpondedores, las antenas para la transmisión y recepción de comunicaciones digitales y análogas y el equipo"]
[null,"  Equipo satelital en tierra, incluyendo las antenas para la transmisión y recepción de comunicaciones digitales y análogas y el equipo para el monitoreo del satélite",null,null,null,"    Equipo satelital en tierra, incluyendo las antenas para la transmisión y recepción de comunicaciones digitales y análogas y el equipo para el monitoreo del satélite"]
[null,"Adaptaciones que se realicen a instalaciones al activo fijo (NO SELECCIONAR)",null,null,null,"  Adaptaciones que se realicen a instalaciones al activo fijo (NO SELECCIONAR)"]
[null,"  Adaptaciones a instalaciones al cativo fijo para personas con discapacidad",null,null,null,"    Adaptaciones a instalaciones al cativo fijo para personas con discapacidad"]
[null,"Maquinaria y equipo para la generación de energía (NO SELECCIONAR)",null,null,null,"  Maquinaria y equipo para la generación de energía (NO SELECCIONAR)"]
[null,"  Maquinaria y equipo para la generación de energía proveniente de fuentes renovables o de sistemas de cogeneración de electricidad eficiente",null,null,null,"    Maquinaria y equipo para la generación de energía proveniente de fuentes renovables o de sistemas de cogeneración de electricidad eficiente"]
[null,"Bicicletas (NO SELECCIONAR)",null,null,null,"  Bicicletas (NO SELECCIONAR)"]
[null,"  Bicicletas convencionales, bicicletas y motocicletas cuya propulsión sea a través de baterías eléctricas recargables",null,null,null,"    Bicicletas convencionales, bicicletas y motocicletas cuya propulsión sea a través de baterías eléctricas recargables"]
[null,"Derecho de usufructo (NO SELECCIONAR)",null,null,null,"  Derecho de usufructo (NO SELECCIONAR)"]
[null,"  Derecho de usufructo constituido sobre un bien inmueble",null,null,null,"    Derecho de usufructo constituido sobre un bien inmueble"]
[null,"Maquinaria y equipo (NO SELECCIONAR)",null,null,null,"  Maquinaria y equipo (NO SELECCIONAR)"]
[null,"  Generación, conducción, transformación y distribución de electricidad; en la molienda de granos; en la producción de azúcar y sus derivados; en la fabricación de aceites comestibles; en el transporte marítimo, fluvial y lacustre",null,null,null,"    Generación, conducción, transformación y distribución de electricidad; en la molienda de granos; en la producción de azúcar y sus derivados; en la fabricación de aceites comestibles; en el transporte marítimo, fluvial y lacustre"]
[null,"  Producción de metal obtenido en primer proceso; en la fabricación de productos de tabaco y derivados del carbón natural",null,null,null,"    Producción de metal obtenido en primer proceso; en la fabricación de productos de tabaco y derivados del carbón natural"]
[null,"  Fabricación de pulpa, papel y productos similares",null,null,null,"    Fabricación de pulpa, papel y productos similares"]
[null,"  Fabricación de vehículos de motos y sus partes, construcción de ferrocarriles y navíos, fabricación de productos de metal, maquinaría y de instrumentos profesionales y científicos, elaboración de productos alimentación de bebidas, excepto granos, azúcar, aceites comestibles y derivados",null,null,null,"    Fabricación de vehículos de motos y sus partes, construcción de ferrocarriles y navíos, fabricación de productos de metal, maquinaría y de instrumentos profesionales y científicos, elaboración de productos alimentación de bebidas, excepto granos, azúcar, aceites comestibles y derivados"]
[null,"  Curtido de piel y la fabricación de artículos de piel, elaboración de productos químicos, petroquímicos y farmacobiológicos, fabricación de productos de caucho y de plástico; en la impresión y publicación gráfica",null,null,null,"    Curtido de piel y la fabricación de artículos de piel, elaboración de productos químicos, petroquímicos y farmacobiológicos, fabricación de productos de caucho y de plástico; en la impresión y publicación gráfica"]
[null,"  Transporte eléctrico; en la infraestructura fija para el transporte, almacenamiento y procesamiento de hidrocarburos, en plataformas y embarcaciones de perforación de pozos y embarcaciones de procesamiento y almacenamiento de hidrocarburos",null,null,null,"    Transporte eléctrico; en la infraestructura fija para el transporte, almacenamiento y procesamiento de hidrocarburos, en plataformas y embarcaciones de perforación de pozos y embarcaciones de procesamiento y almacenamiento de hidrocarburos"]
[null,"  Inversiones en equipos fijos de alimentación para vehículos eléctricos, públicos",null,null,null,"    Inversiones en equipos fijos de alimentación para vehículos eléctricos, públicos"]
[null,"  Inversiones en equipos fijos de alimentación para vehículos eléctricos, no públicos",null,null,null,"    Inversiones en equipos fijos de alimentación para vehículos eléctricos, no públicos"]
[null,"  Fabricación, acabado, teñido y estampado de productos textiles, así como de prendas para el vestido",null,null,null,"    Fabricación, acabado, teñido y estampado de productos textiles, así como de prendas para el vestido"]
[null,"  Industria minera; en la construcción de aeronaves y en el transporte terrestre de carga y pasajeros",null,null,null,"    Industria minera; en la construcción de aeronaves y en el transporte terrestre de carga y pasajeros"]
[null,"  Transporte aéreo. Transmisión de los servicios de comunicación proporcionados por telégrafos y por las estaciones de radio y televisión",null,null,null,"    Transporte aéreo. Transmisión de los servicios de comunicación proporcionados por telégrafos y por las estaciones de radio y televisión"]
[null,"  Restaurantes",null,null,null,"    Restaurantes"]
[null,"  Industria de la construcción actividades de agricultura, ganadería , silvicultura y pesca",null,null,null,"    Industria de la construcción actividades de agricultura, ganadería , silvicultura y pesca"]
[null,"  Destinados directamente a la investigación de nuevos productos o desarrollo de tecnología en el país",null,null,null,"    Destinados directamente a la investigación de nuevos productos o desarrollo de tecnología en el país"]
[null,"  Manufactura, ensamble y transformación de componentes magnéticos para discos duros y tarjetas electrónicas para la industria de la computación",null,null,null,"    Manufactura, ensamble y transformación de componentes magnéticos para discos duros y tarjetas electrónicas para la industria de la computación"]
[null,"  Otras actividades no especificadas",null,null,null,"    Otras actividades no especificadas"]
[]
[]
[]
[]
[null,"Cargos y gastos diferidos "]
[null,"Construcciones "]
[null,"Ferrocarriles "]
[null,"Mobiliario y equipo de oficina "]
[null,"Embarcaciones "]
[null,"Aviones "]
[null,"Automóviles "]
[null,"Computadoras "]
[null,"Dados troqueles moldes matrices y herramental "]
[null,"Semovientes y vegetales "]
[null,"Comunicaciones telefónicas "]
[null,"Comunicaciones satelitales "]
[null,"Adaptaciones que se realicen a instalaciones al activo fijo "]
[null,"Maquinaria y equipo para la generación de energía "]
[null,"Bicicletas "]
[null,"Derecho de usufructo"]
[null,"Maquinaria y equipo "]
[]
[]
[]
[]
[]
[null,"Actividades de operación (NO SELECCIONAR)"]
[null,"Cobros a clientes"]
[null,"(-) Pago a proveedores"]
[null,"(-) Pago a empleados y otros proveedores de bienes y servicios"]
[null,"(-) Pago por impuestos a la utilidad"]
[null,"(-) Pago por impuestos a la utilidad"]
[null,"(+/-) Sin partidas relacionadas actividades de operación"]
[null,"Actividades de inversión (NO SELECCIONAR)"]
[null,"Negocio adquirido"]
[null,"Intereses cobrados"]
[null,"Dividendos cobrados"]
[null,"Adquisición de propiedades, planta y equipo"]
[null,"Cobro de venta de propiedades, planta y equipo"]
[null,"Adquisición de acciones"]
[null,"Adquisición de activos intangibles"]
[null,"Adquisición de otros activos"]
[null,"(+/-) Sin partidas relacionadas con actividades de inversión"]
[null,"Actividades de financiamiento (NO SELECCIONAR)"]
[null,"Entrada de efectivo por emisión de capital"]
[null,"Entrada de efectivo por aportaciones para futuros aumentos de capital"]
[null,"Obtención de prestamos (Partes relacionadas)"]
[null,"Obtención de préstamos (Partes no relacionadas)"]
[null,"Pago de pasivos a largo plazo"]
[null,"Pago de préstamos con partes relacionadas"]
[null,"Pago de préstamos con partes no relacionadas"]
[null,"Pago de pasivos derivados de arrendamiento financiero"]
[null,"Intereses pagados"]
[null,"Dividendos pagados"]
[null,"(+/-) Sin actividades de financiamiento"]
[null,"Efectos por cambios en el valor del efectivo (NO SELECCIONAR)"]
[null,"Efectos por cambios en el valor del efectivo por conversión de los saldos y fljos de efectivo de sus operaciones extranjeras a la moneda de informe"]
[null,"Efectos por cambios en el valor del efectivo por inflación asociado con los saldos y flujos de efectivo de entidades que conforman la entidad económica consolidada"]
[]
[]
[null,"Partidas relacionadas con actividades de inversión"]
[null,"Depreciaciones y Amortizaciones"]
[null,"Utilidad por venta de propiedades, planta y equipo"]
[null,"Intereses a favor"]
[null,"Divedendos cobrados"]
[null,"Otros ajustes por partidas asociadas con actividades de inversion"]
[null,"Partidas relacionadas con actividades de financiamiento"]
[null,"Intereses a cargo"]
[null,"Intereses asociados con préstamos interbancarios y de otros organismos"]
[null,"Otros intereses"]
[null,"(+/-) Sin actividades de financiamiento"]
[null,"Partidas relacionadas con actividades de operación"]
[null,"Cobros a clientes"]
[null,"Pago a proveedores"]
[null,"Pago a empleados y otros proveedores de bienes y servicios"]
[null,"Pago por impuestos a la utilidad"]
[null,"(+/-) Sin partidas relacionadas actividades de operación"]
[null,"Actividades de inversión"]
[null,"Negocio adquirido"]
[null,"Intereses cobrados"]
[null,"Dividendos cobrados"]
[null,"Adquisición de propiedades, planta y equipo"]
[null,"Cobro de venta de propiedades, planta y equipo"]
[null,"Adquisición de acciones"]
[null,"Adquisición de activos intangibles"]
[null,"Adquisición de otros activos"]
[null,"Otros cobros por actividades de inversión"]
[null,"Otros pagos por actividades de inversión"]
[null,"(+/-) Sin partidas relacionadas con actividades de inversión"]
[null,"Actividades de financiamiento"]
[null,"Entrada de efectivo por emisión de capital"]
[null,"Esntrada de efectivo por aportaciones para futuros aumentos de capital"]
[null,"Obtención de préstamos (Partes relacionadas)"]
[null,"Obtención de préstamos (Partes no relacionadas)"]
[null,"Pago de pasivos a largo plazo"]
[null,"Pago de préstamos con partes relacionadas"]
[null,"Pago de préstamos con partes no relacionadas"]
[null,"Pago de pasivos derivados de arrendamiento financiero"]
[null,"Intereses pagado"]
[null,"Dividendos pagados"]
[null,"Otros cobros por actividades de financiameinto"]
[null,"Otros pagos por actividades de financiamiento"]
[null,"(+/-) Sin actividades de financiamiento"]
[null,"Flujos netos de efectivo de actividades de financiamiento"]
[null,"Efectos por cambios en el valor del efectivo"]
[null,"Efectos por cambios en el valor del efectivo por conversión de los saldos y fljos de efectivo de sus operaciones extranjeras a la moneda de informe"]
[null,"Efectos por cambios en el valor del efectivo por inflación asociado con los saldos y flujos de efectivo de entidades que conforman la entidad económica consolidada"]
[]
[]
[]
[]
[]
[]
[]
[]
[]
[]
[]
[]
[]
[null,"Costo identificado"]
[null,"Costo promedio"]
[null,"Detallista"]
[null,"Primeras entradas primeras salidas (PEPS)"]
[]
[]
[null,"Estándar"]
[null,"Estimados"]
[]
[null,"Costeo absorbente"]
[]
[]
[]
[null,"Costo de lo vendido"]
[null,"Inventario inicial"]
[null,"(+) Compras netas nacionales"]
[null,"(+) Compras netas extranjeras"]
[null,"(-) Inventario final"]
[null,"(=) Total de materiales utilizados o comercializados",{"$f":"IFERROR(C285+C286+C287-C288,0)","v":0}]
[null,"(+) Mano de obra directa de fabricación"]
[null,"(+) Gastos relacionados a la mano de obra"]
[null,"(+) Maquilas"]
[null,"(+) Gastos indirectos"]
[null,"(+) Deducción de inversiones"]
[null,"(+) Mano de obra indirecta de fabricación"]
[null,"(=) Costo de lo vendido",{"$f":"IFERROR(SUM(C289:C295),0)","v":0}]
[]
[null,"Costo de lo vendido"]
[null,"Costo de lo vendido"]
[]
[null,"Determinación del costo de producción"]
[null,"Importe de las materias primas"]
[null,"(+) Mano de obra directa"]
[null,"(+) Costos indirectos de fabricación"]
[null,"(=) Costo de producción",{"$f":"SUM(C302:C304)","v":0}]